Workbook

Sheet Sheet1
B1: The Tangent Vectors
B2: to a Parametric Curve
B4: This DIGMath module lets you investigate the
B5: slope of the tangent vector to a parametric curve
B6: based on the parametric functions
C7: x = f(t) and y = g(t)
B8: on any interval from t = a to t = b.
A11: Enter the first function in terms of t: x = f(t) = | F11: sin(2*t)
A13: Enter the second function in terms of t: y = g(t) = | F13: cos(3*t)
A16: Now enter the interval for t : | I16: The graph of the parametric functions
B17: Starting value a = | D17: 0 | J17: x = | K17: =F11 -> sin(2*t)
B18: Ending value b = | D18: 6.28 | J18: y = | K18: =F13 -> cos(3*t)
I20: Select the point of tangency at t0 = | N20: =J21 -> 3.811
I21: t = | J21: =D17+K21*Sheet2!B12 -> 3.811 | K21: 304
I22: x = | J22: =LOOKUP(J21,Sheet2!C3:C504,Sheet2!D3:D504) -> 0.973
A23: Click each item below for suggestions and investigations | I23: y = | J23: =LOOKUP(J21,Sheet2!C3:C504,Sheet2!E3:E504) -> 0.423
B24: Item 1
B25: Item 2 | I25: The slope of the tangent vector at t0
B26: Item 3 | J26: = y'(t0) / x'(t0) = | M26: =m -> 5.90
B27: Item 4
B28: Item 5
A32: To access/download all the DIGMath Apps for Calculus
A33: Click this link: | C33: DIGMath for Calculus
A35: Created by: Sheldon P. Gordon
A36: Farmingdale State College
A37: Development of this module was supported by the
A38: NSF's Division of Undergraduate Education
A39: under grants DUE-0310123 and DUE-0442160.

Sheet Sheet2
C1: t | D1: x = f(t) | E1: y = g(t) | F1: x' | G1: y' | H1: Slope | I1: graphing | K1: Tracing point | P1: m > 0 | T1: m < 0
O2: xl = | P2: =IF(x0<xMin+80*dx,xMin,x0-80*dx) -> 0.6536799437 | Q2: =y0+m*(P$2-x0) -> -1.460452332 | R2: = yl | S2: xl = | T2: =IF(x0<xMin+80*dx,xMin,x0-80*dx) -> 0.6536799437 | U2: =y0+m*(T$2-x0) -> -1.460452332 | V2: = yl
C3: =a -> 0 | D3: =SIN(2*t) -> 0 | E3: =COS(3*t) -> 1 | F3: =(LOOKUP(Sheet2!C3+0.0001,Sheet2!$C$505:$C$1005,$D$505:$D$1005)-D3)/0.0001 -> 1.999999987 | G3: =(LOOKUP(Sheet2!C3+0.0001,Sheet2!$C$505:$C$1005,$E$505:$E$1005)-E3)/0.0001 -> -0.0004499999962 | H3: =G3/F3 -> -0.0002249999996 | I3: =IF(H3>100,100,IF(H3<-100,-100,H3)) -> -0.0002249999996 | K3: 0 | L3: 0 | O3: xr = | P3: =IF(x0>xMax-80*dx,xMax,x0+80*dx) -> 0.9999746859 | Q3: =y0+m*(P3-x0) -> 0.5814044767 | R3: = yR | S3: xr = | T3: =IF(x0>xMax-80*dx,xMax,x0+80*dx) -> 0.9999746859 | U3: =y0+m*(T3-x0) -> 0.5814044767 | V3: = yR
C4: =C3+B$12 -> 0.01253493014 | D4: 0.0250672343 | E4: 0.9992930232 | F4: =(LOOKUP(Sheet2!C4+0.0001,Sheet2!$C$505:$C$1005,$D$505:$D$1005)-D4)/0.0001 -> 1.999366508 | G4: =(LOOKUP(Sheet2!C4+0.0001,Sheet2!$C$505:$C$1005,$E$505:$E$1005)-E4)/0.0001 -> -0.1132374645 | H4: =G4/F4 -> -0.05663667166 | I4: =IF(H4>100,100,IF(H4<-100,-100,H4)) -> -0.05663667166 | K4: =Sheet1!J22 -> 0.9730371347 | L4: =Sheet1!J23 -> 0.422572662
C5: =C4+B$12 -> 0.02506986028 | D5: 0.05011871473 | E5: 0.9971730924 | F5: =(LOOKUP(Sheet2!C5+0.0001,Sheet2!$C$505:$C$1005,$D$505:$D$1005)-D5)/0.0001 -> 1.997476498 | G5: =(LOOKUP(Sheet2!C5+0.0001,Sheet2!$C$505:$C$1005,$E$505:$E$1005)-E5)/0.0001 -> -0.2258648164 | H5: =G5/F5 -> -0.1130750808 | I5: -0.1130750808
C6: 0.03760479042 | D6: 0.07513869729 | E6: 0.9936432051 | F6: =(LOOKUP(Sheet2!C6+0.0001,Sheet2!$C$505:$C$1005,$D$505:$D$1005)-D6)/0.0001 -> 1.994331144 | G6: =(LOOKUP(Sheet2!C6+0.0001,Sheet2!$C$505:$C$1005,$E$505:$E$1005)-E6)/0.0001 -> -0.3381728059 | H6: -0.1695670285 | I6: -0.1695670285 | O6: xL = | P6: =IF(xSlope=0,x0,IF(Q$2<yMin,x0+(yMin-y0)/m,P$2)) -> 0.7317816809 | Q6: yL = | R6: =IF(xSlope=0,yMin,IF(Q$2<yMin,yMin,Q$2)) -> -0.9999412572 | S6: xL = | T6: =IF(m=0,x0,IF(U$2>yMax,x0+(yMax-y0)/m,T$2)) -> 0.6536799437 | U6: yL = | V6: =IF(m=0,yMin,IF(U$2>yMax,yMax,U$2)) -> -1.460452332
C7: 0.05013972056 | D7: 0.1001114578 | E7: 0.9887083523 | F7: =(LOOKUP(Sheet2!C7+0.0001,Sheet2!$C$505:$C$1005,$D$505:$D$1005)-D7)/0.0001 -> 1.989932422 | G7: =(LOOKUP(Sheet2!C7+0.0001,Sheet2!$C$505:$C$1005,$E$505:$E$1005)-E7)/0.0001 -> -0.4500026348 | H7: -0.2261396567 | I7: -0.2261396567 | O7: xR = | P7: =IF(xSlope=0,x0,IF(Q$3>yMax,x0+(yMax-y0)/m,P$3)) -> 0.9999746859 | Q7: yR = | R7: =IF(xSlope=0,yMax,IF(Q$3>yMax,yMax,Q$3)) -> 0.5814044767 | S7: xR = | T7: =IF(m=0,x0,IF(U$3<yMin,x0+(yMin-y0)/m,T$3)) -> 0.9999746859 | U7: yR = | V7: =IF(m=0,yMax,IF(U$3<yMin,yMin,U$3)) -> 0.5814044767
C8: 0.0626746507 | D8: 0.1250213018 | E8: 0.9823755119 | F8: =(LOOKUP(Sheet2!C8+0.0001,Sheet2!$C$505:$C$1005,$D$505:$D$1005)-D8)/0.0001 -> 1.984283098 | G8: =(LOOKUP(Sheet2!C8+0.0001,Sheet2!$C$505:$C$1005,$E$505:$E$1005)-E8)/0.0001 -> -0.5611961809 | H8: -0.2828206225 | I8: -0.2828206225 | J8: y' | K8: =LOOKUP(Sheet1!$N$20+0.0001,Sheet2!C505:C1005,E505:E1005)-LOOKUP(Sheet1!$N$20,Sheet2!C$3:C$504,E3:E504) -> 0.0002718796949 | L8: =K8/0.0001 -> 2.718796949
C9: 0.07520958084 | D9: 0.1498525743 | E9: 0.9746536379 | F9: =(LOOKUP(Sheet2!C9+0.0001,Sheet2!$C$505:$C$1005,$D$505:$D$1005)-D9)/0.0001 -> 1.977386721 | G9: =(LOOKUP(Sheet2!C9+0.0001,Sheet2!$C$505:$C$1005,$E$505:$E$1005)-E9)/0.0001 -> -0.6715962215 | H9: -0.3396382783 | I9: -0.3396382783 | J9: x' | K9: =LOOKUP(t0+0.0001,Sheet2!$C505:$C1005,$D505:$D1005)-LOOKUP(t0,Sheet2!$C$3:$C$504,$D3:$D504) -> 4.611024066e-05 | L9: =K9/0.0001 -> 0.4611024066
C10: 0.08774451098 | D10: 0.1745896697 | E10: 0.965553649 | F10: =(LOOKUP(Sheet2!C10+0.0001,Sheet2!$C$505:$C$1005,$D$505:$D$1005)-D10)/0.0001 -> 1.969247626 | G10: =(LOOKUP(Sheet2!C10+0.0001,Sheet2!$C$505:$C$1005,$E$505:$E$1005)-E10)/0.0001 -> -0.7810466563 | H10: -0.3966218601 | I10: -0.3966218601
C11: 0.1002794411 | D11: 0.1992170415 | E11: 0.955088412 | F11: =(LOOKUP(Sheet2!C11+0.0001,Sheet2!$C$505:$C$1005,$D$505:$D$1005)-D11)/0.0001 -> 1.959870928 | G11: =(LOOKUP(Sheet2!C11+0.0001,Sheet2!$C$505:$C$1005,$E$505:$E$1005)-E11)/0.0001 -> -0.8893927273 | H11: -0.453801684 | I11: -0.453801684 | J11: slope | K11: =L8/L9 -> 5.89629746 | L11: =IF(m>100,100,IF(m<-100,-100,m)) -> 5.89629746
A12: delta t = | B12: =(Sheet1!D18-Sheet1!D17)/501 -> 0.01253493014 | C12: 0.1128143713 | D12: 0.2237192125 | E12: 0.9432727242 | F12: =(LOOKUP(Sheet2!C12+0.0001,Sheet2!$C$505:$C$1005,$D$505:$D$1005)-D12)/0.0001 -> 1.949262519 | G12: =(LOOKUP(Sheet2!C12+0.0001,Sheet2!$C$505:$C$1005,$E$505:$E$1005)-E12)/0.0001 -> -0.9964812382 | H12: -0.5112093566 | I12: -0.5112093566
C13: 0.1253493014 | D13: 0.2480807838 | E13: 0.9301232926 | F13: =(LOOKUP(Sheet2!C13+0.0001,Sheet2!$C$505:$C$1005,$D$505:$D$1005)-D13)/0.0001 -> 1.937429067 | G13: =(LOOKUP(Sheet2!C13+0.0001,Sheet2!$C$505:$C$1005,$E$505:$E$1005)-E13)/0.0001 -> -1.102160771 | H13: -0.5688779989 | I13: -0.5688779989
C14: 0.1378842315 | D14: 0.2722864449 | E14: 0.9156587097 | F14: =(LOOKUP(Sheet2!C14+0.0001,Sheet2!$C$505:$C$1005,$D$505:$D$1005)-D14)/0.0001 -> 1.924378009 | G14: =(LOOKUP(Sheet2!C14+0.0001,Sheet2!$C$505:$C$1005,$E$505:$E$1005)-E14)/0.0001 -> -1.206281899 | H14: -0.6268424881 | I14: -0.6268424881 | J14: xMin = | K14: =MIN(D3:D504) -> -0.9999997227 | M14: x0 = | N14: =Sheet1!J22 -> 0.9730371347
C15: 0.1504191617 | D15: 0.2963209836 | E15: 0.8998994279 | F15: =(LOOKUP(Sheet2!C15+0.0001,Sheet2!$C$505:$C$1005,$D$505:$D$1005)-D15)/0.0001 -> 1.910117547 | G15: =(LOOKUP(Sheet2!C15+0.0001,Sheet2!$C$505:$C$1005,$E$505:$E$1005)-E15)/0.0001 -> -1.308697401 | H15: -0.6851397199 | I15: -0.6851397199 | J15: xMax = | K15: =MAX(D3:D504) -> 0.9999746859
C16: 0.1629540918 | D16: 0.3201692949 | E16: 0.8828677301 | F16: =(LOOKUP(Sheet2!C16+0.0001,Sheet2!$C$505:$C$1005,$D$505:$D$1005)-D16)/0.0001 -> 1.894656643 | G16: =(LOOKUP(Sheet2!C16+0.0001,Sheet2!$C$505:$C$1005,$E$505:$E$1005)-E16)/0.0001 -> -1.409262465 | H16: -0.7438088958 | I16: -0.7438088958 | J16: yMin = | K16: =MIN(E3:E504) -> -0.9999412572 | M16: y0 = | N16: =Sheet1!J23 -> 0.422572662
C17: 0.175489022 | D17: 0.3438163911 | E17: 0.8645876982 | F17: =(LOOKUP(Sheet2!C17+0.0001,Sheet2!$C$505:$C$1005,$D$505:$D$1005)-D17)/0.0001 -> 1.878005013 | G17: =(LOOKUP(Sheet2!C17+0.0001,Sheet2!$C$505:$C$1005,$E$505:$E$1005)-E17)/0.0001 -> -1.507834898 | H17: -0.8028918386 | I17: -0.8028918386 | J17: yMax = | K17: =MAX(E3:E504) -> 1
C18: 0.1880239521 | D18: 0.3672474106 | E18: 0.8450851794 | F18: =(LOOKUP(Sheet2!C18+0.0001,Sheet2!$C$505:$C$1005,$D$505:$D$1005)-D18)/0.0001 -> 1.860173123 | G18: =(LOOKUP(Sheet2!C18+0.0001,Sheet2!$C$505:$C$1005,$E$505:$E$1005)-E18)/0.0001 -> -1.604275322 | H18: -0.8624333413 | I18: -0.8624333413
C19: 0.2005588822 | D19: 0.3904476281 | E19: 0.8243877493 | F19: =(LOOKUP(Sheet2!C19+0.0001,Sheet2!$C$505:$C$1005,$D$505:$D$1005)-D19)/0.0001 -> 1.84117218 | G19: =(LOOKUP(Sheet2!C19+0.0001,Sheet2!$C$505:$C$1005,$E$505:$E$1005)-E19)/0.0001 -> -1.698447375 | H19: -0.9224815549 | I19: -0.9224815549 | J19: dx = | K19: =(K15-K14)/501 -> 0.003991964887
C20: 0.2130938124 | D20: 0.4134024629 | E20: 0.8025246732 | F20: =(LOOKUP(Sheet2!C20+0.0001,Sheet2!$C$505:$C$1005,$D$505:$D$1005)-D20)/0.0001 -> 1.821014124 | G20: =(LOOKUP(Sheet2!C20+0.0001,Sheet2!$C$505:$C$1005,$E$505:$E$1005)-E20)/0.0001 -> -1.790217902 | H20: -0.9830884225 | I20: -0.9830884225 | J20: dy = | K20: =(K17-K16)/501 -> 0.003991898717
C21: 0.2256287425 | D21: 0.4360974887 | E21: 0.7795268645 | F21: =(LOOKUP(Sheet2!C21+0.0001,Sheet2!$C$505:$C$1005,$D$505:$D$1005)-D21)/0.0001 -> 1.799711624 | G21: =(LOOKUP(Sheet2!C21+0.0001,Sheet2!$C$505:$C$1005,$E$505:$E$1005)-E21)/0.0001 -> -1.879457144 | H21: -1.044310166 | I21: -1.044310166
C22: 0.2381636727 | D22: 0.4585184425 | E22: 0.7554268409 | F22: =(LOOKUP(Sheet2!C22+0.0001,Sheet2!$C$505:$C$1005,$D$505:$D$1005)-D22)/0.0001 -> 1.777278069 | G22: =(LOOKUP(Sheet2!C22+0.0001,Sheet2!$C$505:$C$1005,$E$505:$E$1005)-E22)/0.0001 -> -1.966038921 | H22: -1.106207833 | I22: -1.106207833
C23: 0.2506986028 | D23: 0.4806512335 | E23: 0.7302586788 | F23: =(LOOKUP(Sheet2!C23+0.0001,Sheet2!$C$505:$C$1005,$D$505:$D$1005)-D23)/0.0001 -> 1.753727557 | G23: =(LOOKUP(Sheet2!C23+0.0001,Sheet2!$C$505:$C$1005,$E$505:$E$1005)-E23)/0.0001 -> -2.04984081 | H23: -1.168847922 | I23: -1.168847922 | J23: xl = | K23: =IF(m>=0,P6,T6) -> 0.7317816809 | L23: =IF(m>=0,R6,V6) -> -0.9999412572 | M23: = yl
C24: 0.2632335329 | D24: 0.5024819521 | E24: 0.7040579647 | F24: =(LOOKUP(Sheet2!C24+0.0001,Sheet2!$C$505:$C$1005,$D$505:$D$1005)-D24)/0.0001 -> 1.729074888 | G24: =(LOOKUP(Sheet2!C24+0.0001,Sheet2!$C$505:$C$1005,$E$505:$E$1005)-E24)/0.0001 -> -2.130744319 | H24: -1.232303085 | I24: -1.232303085 | J24: xr = | K24: =IF(m>=0,P7,T7) -> 0.9999746859 | L24: =IF(m>=0,R7,V7) -> 0.5814044767 | M24: = yR
C25: 0.2757684631 | D25: 0.5239968783 | E25: 0.6768617454 | F25: =(LOOKUP(Sheet2!C25+0.0001,Sheet2!$C$505:$C$1005,$D$505:$D$1005)-D25)/0.0001 -> 1.703335557 | G25: =(LOOKUP(Sheet2!C25+0.0001,Sheet2!$C$505:$C$1005,$E$505:$E$1005)-E25)/0.0001 -> -2.208635055 | H25: -1.296652938 | I25: -1.296652938
C26: 0.2883033932 | D26: 0.5451824909 | E26: 0.6487084749 | F26: =(LOOKUP(Sheet2!C26+0.0001,Sheet2!$C$505:$C$1005,$D$505:$D$1005)-D26)/0.0001 -> 1.676525739 | G26: =(LOOKUP(Sheet2!C26+0.0001,Sheet2!$C$505:$C$1005,$E$505:$E$1005)-E26)/0.0001 -> -2.283402883 | H26: -1.361984985 | I26: -1.361984985
C27: 0.3008383234 | D27: 0.5660254753 | E27: 0.6196379608 | F27: =(LOOKUP(Sheet2!C27+0.0001,Sheet2!$C$505:$C$1005,$D$505:$D$1005)-D27)/0.0001 -> 1.648662283 | G27: =(LOOKUP(Sheet2!C27+0.0001,Sheet2!$C$505:$C$1005,$E$505:$E$1005)-E27)/0.0001 -> -2.354942085 | H27: -1.428395682 | I27: -1.428395682
C28: 0.3133732535 | D28: 0.5865127326 | E28: 0.5896913073 | F28: =(LOOKUP(Sheet2!C28+0.0001,Sheet2!$C$505:$C$1005,$D$505:$D$1005)-D28)/0.0001 -> 1.6197627 | G28: =(LOOKUP(Sheet2!C28+0.0001,Sheet2!$C$505:$C$1005,$E$505:$E$1005)-E28)/0.0001 -> -2.423151508 | H28: -1.495991671 | I28: -1.495991671
C29: 0.3259081836 | D29: 0.6066313872 | E29: 0.5589108576 | F29: =(LOOKUP(Sheet2!C29+0.0001,Sheet2!$C$505:$C$1005,$D$505:$D$1005)-D29)/0.0001 -> 1.589845153 | G29: =(LOOKUP(Sheet2!C29+0.0001,Sheet2!$C$505:$C$1005,$E$505:$E$1005)-E29)/0.0001 -> -2.487934708 | H29: -1.564891211 | I29: -1.564891211
C30: 0.3384431138 | D30: 0.6263687952 | E30: 0.5273401339 | F30: =(LOOKUP(Sheet2!C30+0.0001,Sheet2!$C$505:$C$1005,$D$505:$D$1005)-D30)/0.0001 -> 1.558928445 | G30: =(LOOKUP(Sheet2!C30+0.0001,Sheet2!$C$505:$C$1005,$E$505:$E$1005)-E30)/0.0001 -> -2.549200083 | H30: -1.635225845 | I30: -1.635225845
C31: 0.3509780439 | D31: 0.6457125523 | E31: 0.4950237757 | F31: =(LOOKUP(Sheet2!C31+0.0001,Sheet2!$C$505:$C$1005,$D$505:$D$1005)-D31)/0.0001 -> 1.527032004 | G31: =(LOOKUP(Sheet2!C31+0.0001,Sheet2!$C$505:$C$1005,$E$505:$E$1005)-E31)/0.0001 -> -2.606861007 | H31: -1.707142352 | I31: -1.707142352
C32: 0.3635129741 | D32: 0.6646505017 | E32: 0.4620074768 | F32: =(LOOKUP(Sheet2!C32+0.0001,Sheet2!$C$505:$C$1005,$D$505:$D$1005)-D32)/0.0001 -> 1.494175878 | G32: =(LOOKUP(Sheet2!C32+0.0001,Sheet2!$C$505:$C$1005,$E$505:$E$1005)-E32)/0.0001 -> -2.660835951 | H32: -1.780805052 | I32: -1.780805052
C33: 0.3760479042 | D33: 0.6831707415 | E33: 0.4283379208 | F33: =(LOOKUP(Sheet2!C33+0.0001,Sheet2!$C$505:$C$1005,$D$505:$D$1005)-D33)/0.0001 -> 1.460380714 | G33: =(LOOKUP(Sheet2!C33+0.0001,Sheet2!$C$505:$C$1005,$E$505:$E$1005)-E33)/0.0001 -> -2.711048597 | H33: -1.856398521 | I33: -1.856398521
C34: 0.3885828343 | D34: 0.7012616325 | E34: 0.3940627149 | F34: =(LOOKUP(Sheet2!C34+0.0001,Sheet2!$C$505:$C$1005,$D$505:$D$1005)-D34)/0.0001 -> 1.425667752 | G34: =(LOOKUP(Sheet2!C34+0.0001,Sheet2!$C$505:$C$1005,$E$505:$E$1005)-E34)/0.0001 -> -2.757427945 | H34: -1.934130825 | I34: -1.934130825
C35: 0.4011177645 | D35: 0.7189118051 | E35: 0.3592303225 | F35: =(LOOKUP(Sheet2!C35+0.0001,Sheet2!$C$505:$C$1005,$D$505:$D$1005)-D35)/0.0001 -> 1.390058807 | G35: =(LOOKUP(Sheet2!C35+0.0001,Sheet2!$C$505:$C$1005,$E$505:$E$1005)-E35)/0.0001 -> -2.799908418 | H35: -2.014237386 | I35: -2.014237386
C36: 0.4136526946 | D36: 0.7361101668 | E36: 0.3238899951 | F36: =(LOOKUP(Sheet2!C36+0.0001,Sheet2!$C$505:$C$1005,$D$505:$D$1005)-D36)/0.0001 -> 1.35357626 | G36: =(LOOKUP(Sheet2!C36+0.0001,Sheet2!$C$505:$C$1005,$E$505:$E$1005)-E36)/0.0001 -> -2.83842995 | H36: -2.096985618 | I36: -2.096985618
C37: 0.4261876248 | D37: 0.752845909 | E37: 0.2880917023 | F37: =(LOOKUP(Sheet2!C37+0.0001,Sheet2!$C$505:$C$1005,$D$505:$D$1005)-D37)/0.0001 -> 1.316243037 | G37: =(LOOKUP(Sheet2!C37+0.0001,Sheet2!$C$505:$C$1005,$E$505:$E$1005)-E37)/0.0001 -> -2.872938074 | H37: -2.182680549 | I37: -2.182680549
C38: 0.4387225549 | D38: 0.769108514 | E38: 0.2518860612 | F38: =(LOOKUP(Sheet2!C38+0.0001,Sheet2!$C$505:$C$1005,$D$505:$D$1005)-D38)/0.0001 -> 1.278082601 | G38: =(LOOKUP(Sheet2!C38+0.0001,Sheet2!$C$505:$C$1005,$E$505:$E$1005)-E38)/0.0001 -> -2.903383997 | H38: -2.271671638 | I38: -2.271671638
C39: 0.451257485 | D39: 0.7848877611 | E39: 0.2153242649 | F39: =(LOOKUP(Sheet2!C39+0.0001,Sheet2!$C$505:$C$1005,$D$505:$D$1005)-D39)/0.0001 -> 1.239118936 | G39: =(LOOKUP(Sheet2!C39+0.0001,Sheet2!$C$505:$C$1005,$E$505:$E$1005)-E39)/0.0001 -> -2.929724669 | H39: -2.364361148 | I39: -2.364361148
C40: 0.4637924152 | D40: 0.8001737339 | E40: 0.17845801 | F40: =(LOOKUP(Sheet2!C40+0.0001,Sheet2!$C$505:$C$1005,$D$505:$D$1005)-D40)/0.0001 -> 1.199376527 | G40: =(LOOKUP(Sheet2!C40+0.0001,Sheet2!$C$505:$C$1005,$E$505:$E$1005)-E40)/0.0001 -> -2.951922847 | H40: -2.461214456 | I40: -2.461214456
C41: 0.4763273453 | D41: 0.8149568254 | E41: 0.1413394238 | F41: =(LOOKUP(Sheet2!C41+0.0001,Sheet2!$C$505:$C$1005,$D$505:$D$1005)-D41)/0.0001 -> 1.158880353 | G41: =(LOOKUP(Sheet2!C41+0.0001,Sheet2!$C$505:$C$1005,$E$505:$E$1005)-E41)/0.0001 -> -2.969947143 | H41: -2.562772883 | I41: -2.562772883
C42: 0.4888622754 | D42: 0.8292277451 | E42: 0.1040209902 | F42: =(LOOKUP(Sheet2!C42+0.0001,Sheet2!$C$505:$C$1005,$D$505:$D$1005)-D42)/0.0001 -> 1.117655862 | G42: =(LOOKUP(Sheet2!C42+0.0001,Sheet2!$C$505:$C$1005,$E$505:$E$1005)-E42)/0.0001 -> -2.983772071 | H42: -2.669669772 | I42: -2.669669772
C43: 0.5013972056 | D43: 0.8429775242 | E43: 0.06655547579 | F43: =(LOOKUP(Sheet2!C43+0.0001,Sheet2!$C$505:$C$1005,$D$505:$D$1005)-D43)/0.0001 -> 1.075728964 | G43: =(LOOKUP(Sheet2!C43+0.0001,Sheet2!$C$505:$C$1005,$E$505:$E$1005)-E43)/0.0001 -> -2.993378084 | H43: -2.782650819 | I43: -2.782650819
C44: 0.5139321357 | D44: 0.8561975215 | E44: 0.02899585498 | F44: =(LOOKUP(Sheet2!C44+0.0001,Sheet2!$C$505:$C$1005,$D$505:$D$1005)-D44)/0.0001 -> 1.033126008 | G44: =(LOOKUP(Sheet2!C44+0.0001,Sheet2!$C$505:$C$1005,$E$505:$E$1005)-E44)/0.0001 -> -2.998751599 | H44: -2.902600045 | I44: -2.902600045
C45: 0.5264670659 | D45: 0.8688794286 | E45: -0.008604764621 | F45: =(LOOKUP(Sheet2!C45+0.0001,Sheet2!$C$505:$C$1005,$D$505:$D$1005)-D45)/0.0001 -> 0.9898737689 | G45: =(LOOKUP(Sheet2!C45+0.0001,Sheet2!$C$505:$C$1005,$E$505:$E$1005)-E45)/0.0001 -> -2.999885018 | H45: -3.030573303 | I45: -3.030573303
C46: 0.539001996 | D46: 0.8810152755 | E46: -0.04619321748 | F46: =(LOOKUP(Sheet2!C46+0.0001,Sheet2!$C$505:$C$1005,$D$505:$D$1005)-D46)/0.0001 -> 0.9459994285 | G46: =(LOOKUP(Sheet2!C46+0.0001,Sheet2!$C$505:$C$1005,$E$505:$E$1005)-E46)/0.0001 -> -2.996776739 | H46: -3.167842018 | I46: -3.167842018
C47: 0.5515369261 | D47: 0.892597435 | E47: -0.08371635528 | F47: =(LOOKUP(Sheet2!C47+0.0001,Sheet2!$C$505:$C$1005,$D$505:$D$1005)-D47)/0.0001 -> 0.9015305606 | G47: =(LOOKUP(Sheet2!C47+0.0001,Sheet2!$C$505:$C$1005,$E$505:$E$1005)-E47)/0.0001 -> -2.989431156 | H47: -3.315950992 | I47: -3.315950992
C48: 0.5640718563 | D48: 0.9036186284 | E48: -0.121121122 | F48: =(LOOKUP(Sheet2!C48+0.0001,Sheet2!$C$505:$C$1005,$D$505:$D$1005)-D48)/0.0001 -> 0.8564951123 | G48: =(LOOKUP(Sheet2!C48+0.0001,Sheet2!$C$505:$C$1005,$E$505:$E$1005)-E48)/0.0001 -> -2.977858657 | H48: -3.476795856 | I48: -3.476795856
C49: 0.5766067864 | D49: 0.9140719291 | E49: -0.1583546291 | F49: =(LOOKUP(Sheet2!C49+0.0001,Sheet2!$C$505:$C$1005,$D$505:$D$1005)-D49)/0.0001 -> 0.8109213868 | G49: =(LOOKUP(Sheet2!C49+0.0001,Sheet2!$C$505:$C$1005,$E$505:$E$1005)-E49)/0.0001 -> -2.962075604 | H49: -3.65272843 | I49: -3.65272843
C50: 0.5891417166 | D50: 0.9239507676 | E50: -0.1953642301 | F50: =(LOOKUP(Sheet2!C50+0.0001,Sheet2!$C$505:$C$1005,$D$505:$D$1005)-D50)/0.0001 -> 0.7648380256 | G50: =(LOOKUP(Sheet2!C50+0.0001,Sheet2!$C$505:$C$1005,$E$505:$E$1005)-E50)/0.0001 -> -2.942104313 | H50: -3.846702458 | I50: -3.846702458
C51: 0.6016766467 | D51: 0.9332489354 | E51: -0.2320975952 | F51: =(LOOKUP(Sheet2!C51+0.0001,Sheet2!$C$505:$C$1005,$D$505:$D$1005)-D51)/0.0001 -> 0.7182739905 | G51: =(LOOKUP(Sheet2!C51+0.0001,Sheet2!$C$505:$C$1005,$E$505:$E$1005)-E51)/0.0001 -> -2.917973023 | H51: -4.062479028 | I51: -4.062479028
C52: 0.6142115768 | D52: 0.9419605889 | E52: -0.268502785 | F52: =(LOOKUP(Sheet2!C52+0.0001,Sheet2!$C$505:$C$1005,$D$505:$D$1005)-D52)/0.0001 -> 0.6712585453 | G52: =(LOOKUP(Sheet2!C52+0.0001,Sheet2!$C$505:$C$1005,$E$505:$E$1005)-E52)/0.0001 -> -2.889715854 | H52: -4.30492226 | I52: -4.30492226
C53: 0.626746507 | D53: 0.9500802532 | E53: -0.3045283243 | F53: =(LOOKUP(Sheet2!C53+0.0001,Sheet2!$C$505:$C$1005,$D$505:$D$1005)-D53)/0.0001 -> 0.6238212377 | G53: =(LOOKUP(Sheet2!C53+0.0001,Sheet2!$C$505:$C$1005,$E$505:$E$1005)-E53)/0.0001 -> -2.857372761 | H53: -4.580435209 | I53: -4.580435209
C54: 0.6392814371 | D54: 0.9576028253 | E54: -0.3401232747 | F54: =(LOOKUP(Sheet2!C54+0.0001,Sheet2!$C$505:$C$1005,$D$505:$D$1005)-D54)/0.0001 -> 0.5759918803 | G54: =(LOOKUP(Sheet2!C54+0.0001,Sheet2!$C$505:$C$1005,$E$505:$E$1005)-E54)/0.0001 -> -2.820989476 | H54: -4.897620214 | I54: -4.897620214
C55: 0.6518163673 | D55: 0.9645235776 | E55: -0.3752373065 | F55: =(LOOKUP(Sheet2!C55+0.0001,Sheet2!$C$505:$C$1005,$D$505:$D$1005)-D55)/0.0001 -> 0.5278005321 | G55: =(LOOKUP(Sheet2!C55+0.0001,Sheet2!$C$505:$C$1005,$E$505:$E$1005)-E55)/0.0001 -> -2.780617442 | H55: -5.268311177 | I55: -5.268311177
C56: 0.6643512974 | D56: 0.9708381606 | E56: -0.4098207702 | F56: =(LOOKUP(Sheet2!C56+0.0001,Sheet2!$C$505:$C$1005,$D$505:$D$1005)-D56)/0.0001 -> 0.4792774798 | G56: =(LOOKUP(Sheet2!C56+0.0001,Sheet2!$C$505:$C$1005,$E$505:$E$1005)-E56)/0.0001 -> -2.736313745 | H56: -5.709247482 | I56: -5.709247482
C57: 0.6768862275 | D57: 0.9765426058 | E57: -0.4438247664 | F57: =(LOOKUP(Sheet2!C57+0.0001,Sheet2!$C$505:$C$1005,$D$505:$D$1005)-D57)/0.0001 -> 0.4304532184 | G57: =(LOOKUP(Sheet2!C57+0.0001,Sheet2!$C$505:$C$1005,$E$505:$E$1005)-E57)/0.0001 -> -2.688141026 | H57: -6.244908648 | I57: -6.244908648
C58: 0.6894211577 | D58: 0.9816333282 | E58: -0.4772012149 | F58: =(LOOKUP(Sheet2!C58+0.0001,Sheet2!$C$505:$C$1005,$D$505:$D$1005)-D58)/0.0001 -> 0.3813584322 | G58: =(LOOKUP(Sheet2!C58+0.0001,Sheet2!$C$505:$C$1005,$E$505:$E$1005)-E58)/0.0001 -> -2.636167401 | H58: -6.912571425 | I58: -6.912571425
C59: 0.7019560878 | D59: 0.9861071284 | E59: -0.509902923 | F59: =(LOOKUP(Sheet2!C59+0.0001,Sheet2!$C$505:$C$1005,$D$505:$D$1005)-D59)/0.0001 -> 0.3320239756 | G59: =(LOOKUP(Sheet2!C59+0.0001,Sheet2!$C$505:$C$1005,$E$505:$E$1005)-E59)/0.0001 -> -2.580466357 | H59: -7.771927773 | I59: -7.771927773
C60: 0.714491018 | D60: 0.9899611948 | E60: -0.541883652 | F60: =(LOOKUP(Sheet2!C60+0.0001,Sheet2!$C$505:$C$1005,$D$505:$D$1005)-D60)/0.0001 -> 0.2824808535 | G60: =(LOOKUP(Sheet2!C60+0.0001,Sheet2!$C$505:$C$1005,$E$505:$E$1005)-E60)/0.0001 -> -2.521116654 | H60: -8.924911626 | I60: -8.924911626
C61: 0.7270259481 | D61: 0.9931931053 | E61: -0.5730981827 | F61: =(LOOKUP(Sheet2!C61+0.0001,Sheet2!$C$505:$C$1005,$D$505:$D$1005)-D61)/0.0001 -> 0.2327602022 | G61: =(LOOKUP(Sheet2!C61+0.0001,Sheet2!$C$505:$C$1005,$E$505:$E$1005)-E61)/0.0001 -> -2.458202208 | H61: -10.56109329 | I61: -10.56109329
C62: 0.7395608782 | D62: 0.9958008287 | E62: -0.6035023791 | F62: =(LOOKUP(Sheet2!C62+0.0001,Sheet2!$C$505:$C$1005,$D$505:$D$1005)-D62)/0.0001 -> 0.1828932692 | G62: =(LOOKUP(Sheet2!C62+0.0001,Sheet2!$C$505:$C$1005,$E$505:$E$1005)-E62)/0.0001 -> -2.391811979 | H62: -13.07763807 | I62: -13.07763807
C63: 0.7520958084 | D63: 0.9977827262 | E63: -0.6330532511 | F63: =(LOOKUP(Sheet2!C63+0.0001,Sheet2!$C$505:$C$1005,$D$505:$D$1005)-D63)/0.0001 -> 0.1329113941 | G63: =(LOOKUP(Sheet2!C63+0.0001,Sheet2!$C$505:$C$1005,$E$505:$E$1005)-E63)/0.0001 -> -2.322039838 | H63: -17.47058522 | I63: -17.47058522
C64: 0.7646307385 | D64: 0.9991375521 | E64: -0.6617090152 | F64: =(LOOKUP(Sheet2!C64+0.0001,Sheet2!$C$505:$C$1005,$D$505:$D$1005)-D64)/0.0001 -> 0.08284598897 | G64: =(LOOKUP(Sheet2!C64+0.0001,Sheet2!$C$505:$C$1005,$E$505:$E$1005)-E64)/0.0001 -> -2.248984441 | H64: -27.14657003 | I64: -27.14657003
C65: 0.7771656687 | D65: 0.9998644551 | E65: -0.6894291535 | F65: =(LOOKUP(Sheet2!C65+0.0001,Sheet2!$C$505:$C$1005,$D$505:$D$1005)-D65)/0.0001 -> 0.03272851799 | G65: =(LOOKUP(Sheet2!C65+0.0001,Sheet2!$C$505:$C$1005,$E$505:$E$1005)-E65)/0.0001 -> -2.172749084 | H65: -66.38702935 | I65: -66.38702935
C66: 0.7897005988 | D66: 0.9999629783 | E66: -0.7161744709 | F66: =(LOOKUP(Sheet2!C66+0.0001,Sheet2!$C$505:$C$1005,$D$505:$D$1005)-D66)/0.0001 -> -0.01740952172 | G66: =(LOOKUP(Sheet2!C66+0.0001,Sheet2!$C$505:$C$1005,$E$505:$E$1005)-E66)/0.0001 -> -2.093441561 | H66: 120.2469312 | I66: 100
C67: 0.8022355289 | D67: =SIN(2*t) -> 0.9994330598 | E67: =COS(3*t) -> -0.7419071508 | F67: =(LOOKUP(Sheet2!C67+0.0001,Sheet2!$C$505:$C$1005,$D$505:$D$1005)-D67)/0.0001 -> -0.06753662015 | G67: =(LOOKUP(Sheet2!C67+0.0001,Sheet2!$C$505:$C$1005,$E$505:$E$1005)-E67)/0.0001 -> -2.011174008 | H67: 29.77901475 | I67: 29.77901475
C68: 0.8147704591 | D68: 0.9982750326 | E68: -0.7665908083 | F68: =(LOOKUP(Sheet2!C68+0.0001,Sheet2!$C$505:$C$1005,$D$505:$D$1005)-D68)/0.0001 -> -0.1176212742 | G68: =(LOOKUP(Sheet2!C68+0.0001,Sheet2!$C$505:$C$1005,$E$505:$E$1005)-E68)/0.0001 -> -1.926062748 | H68: 16.37512229 | I68: =IF(H68>100,100,IF(H68<-100,-100,H68)) -> 16.37512229
C69: =C68+B$12 -> 0.8273053892 | D69: 0.9964896246 | E69: -0.7901905421 | F69: =(LOOKUP(Sheet2!C69+0.0001,Sheet2!$C$505:$C$1005,$D$505:$D$1005)-D69)/0.0001 -> -0.1676320074 | G69: =(LOOKUP(Sheet2!C69+0.0001,Sheet2!$C$505:$C$1005,$E$505:$E$1005)-E69)/0.0001 -> -1.838228126 | H69: =G69/F69 -> 10.96585404 | I69: 10.96585404
C70: 0.8398403194 | D70: 0.9940779577 | E70: -0.812672983 | F70: =(LOOKUP(Sheet2!C70+0.0001,Sheet2!$C$505:$C$1005,$D$505:$D$1005)-D70)/0.0001 -> -0.2175373897 | G70: =(LOOKUP(Sheet2!C70+0.0001,Sheet2!$C$505:$C$1005,$E$505:$E$1005)-E70)/0.0001 -> -1.747794333 | H70: 8.034454839 | I70: 8.034454839
C71: 0.8523752495 | D71: 0.9910415476 | E71: -0.8340063421 | F71: =(LOOKUP(Sheet2!C71+0.0001,Sheet2!$C$505:$C$1005,$D$505:$D$1005)-D71)/0.0001 -> -0.2673060574 | G71: =(LOOKUP(Sheet2!C71+0.0001,Sheet2!$C$505:$C$1005,$E$505:$E$1005)-E71)/0.0001 -> -1.654889241 | H71: 6.190990421 | I71: 6.190990421
C72: 0.8649101796 | D72: 0.9873823026 | E72: -0.8541604548 | F72: =(LOOKUP(Sheet2!C72+0.0001,Sheet2!$C$505:$C$1005,$D$505:$D$1005)-D72)/0.0001 -> -0.3169067326 | G72: =(LOOKUP(Sheet2!C72+0.0001,Sheet2!$C$505:$C$1005,$E$505:$E$1005)-E72)/0.0001 -> -1.559644212 | H72: 4.921461274 | I72: 4.921461274
C73: 0.8774451098 | D73: 0.9831025224 | E73: -0.8731068243 | F73: =(LOOKUP(Sheet2!C73+0.0001,Sheet2!$C$505:$C$1005,$D$505:$D$1005)-D73)/0.0001 -> -0.366308243 | G73: =(LOOKUP(Sheet2!C73+0.0001,Sheet2!$C$505:$C$1005,$E$505:$E$1005)-E73)/0.0001 -> -1.462193918 | H73: 3.991703562 | I73: 3.991703562
C74: 0.8899800399 | D74: 0.9782048967 | E74: -0.8908186613 | F74: =(LOOKUP(Sheet2!C74+0.0001,Sheet2!$C$505:$C$1005,$D$505:$D$1005)-D74)/0.0001 -> -0.4154795416 | G74: =(LOOKUP(Sheet2!C74+0.0001,Sheet2!$C$505:$C$1005,$E$505:$E$1005)-E74)/0.0001 -> -1.36267615 | H74: 3.279767146 | I74: 3.279767146
C75: 0.9025149701 | D75: 0.9726925035 | E75: -0.9072709219 | F75: =(LOOKUP(Sheet2!C75+0.0001,Sheet2!$C$505:$C$1005,$D$505:$D$1005)-D75)/0.0001 -> -0.4643897258 | G75: =(LOOKUP(Sheet2!C75+0.0001,Sheet2!$C$505:$C$1005,$E$505:$E$1005)-E75)/0.0001 -> -1.261231622 | H75: 2.715890451 | I75: 2.715890451
C76: 0.9150499002 | D76: 0.9665688071 | E76: -0.9224403435 | F76: =(LOOKUP(Sheet2!C76+0.0001,Sheet2!$C$505:$C$1005,$D$505:$D$1005)-D76)/0.0001 -> -0.5130080573 | G76: =(LOOKUP(Sheet2!C76+0.0001,Sheet2!$C$505:$C$1005,$E$505:$E$1005)-E76)/0.0001 -> -1.15800377 | H76: 2.257281837 | I76: 2.257281837
C77: 0.9275848303 | D77: 0.9598376561 | E77: -0.9363054773 | F77: =(LOOKUP(Sheet2!C77+0.0001,Sheet2!$C$505:$C$1005,$D$505:$D$1005)-D77)/0.0001 -> -0.5613039812 | G77: =(LOOKUP(Sheet2!C77+0.0001,Sheet2!$C$505:$C$1005,$E$505:$E$1005)-E77)/0.0001 -> -1.053138554 | H77: 1.876235675 | I77: 1.876235675
C78: 0.9401197605 | D78: 0.9525032807 | E78: -0.9488467186 | F78: =(LOOKUP(Sheet2!C78+0.0001,Sheet2!$C$505:$C$1005,$D$505:$D$1005)-D78)/0.0001 -> -0.6092471452 | G78: =(LOOKUP(Sheet2!C78+0.0001,Sheet2!$C$505:$C$1005,$E$505:$E$1005)-E78)/0.0001 -> -0.9467842495 | H78: 1.554023284 | I78: 1.554023284
C79: 0.9526546906 | D79: 0.9445702903 | E79: -0.9600463345 | F79: =(LOOKUP(Sheet2!C79+0.0001,Sheet2!$C$505:$C$1005,$D$505:$D$1005)-D79)/0.0001 -> -0.6568074187 | G79: =(LOOKUP(Sheet2!C79+0.0001,Sheet2!$C$505:$C$1005,$E$505:$E$1005)-E79)/0.0001 -> -0.8390912359 | H79: 1.277530083 | I79: 1.277530083
C80: 0.9651896208 | D80: 0.9360436707 | E80: -0.9698884895 | F80: =(LOOKUP(Sheet2!C80+0.0001,Sheet2!$C$505:$C$1005,$D$505:$D$1005)-D80)/0.0001 -> -0.7039549118 | G80: =(LOOKUP(Sheet2!C80+0.0001,Sheet2!$C$505:$C$1005,$E$505:$E$1005)-E80)/0.0001 -> -0.7302117862 | H80: 1.037299086 | I80: 1.037299086
C81: 0.9777245509 | D81: 0.9269287803 | E81: -0.9783592672 | F81: =(LOOKUP(Sheet2!C81+0.0001,Sheet2!$C$505:$C$1005,$D$505:$D$1005)-D81)/0.0001 -> -0.7506599938 | G81: =(LOOKUP(Sheet2!C81+0.0001,Sheet2!$C$505:$C$1005,$E$505:$E$1005)-E81)/0.0001 -> -0.6202998509 | H81: 0.8263392961 | I81: 0.8263392961
C82: 0.990259481 | D82: 0.9172313477 | E82: -0.9854466902 | F82: =(LOOKUP(Sheet2!C82+0.0001,Sheet2!$C$505:$C$1005,$D$505:$D$1005)-D82)/0.0001 -> -0.7968933123 | G82: =(LOOKUP(Sheet2!C82+0.0001,Sheet2!$C$505:$C$1005,$E$505:$E$1005)-E82)/0.0001 -> -0.5095108404 | H82: 0.6393714597 | I82: 0.6393714597
C83: 1.002794411 | D83: 0.9069574673 | E83: -0.9911407373 | F83: =(LOOKUP(Sheet2!C83+0.0001,Sheet2!$C$505:$C$1005,$D$505:$D$1005)-D83)/0.0001 -> -0.8426258113 | G83: =(LOOKUP(Sheet2!C83+0.0001,Sheet2!$C$505:$C$1005,$E$505:$E$1005)-E83)/0.0001 -> -0.3980014051 | H83: 0.4723346944 | I83: 0.4723346944
C84: 1.015329341 | D84: 0.8961135959 | E84: -0.9954333573 | F84: =(LOOKUP(Sheet2!C84+0.0001,Sheet2!$C$505:$C$1005,$D$505:$D$1005)-D84)/0.0001 -> -0.8878287495 | G84: =(LOOKUP(Sheet2!C84+0.0001,Sheet2!$C$505:$C$1005,$E$505:$E$1005)-E84)/0.0001 -> -0.2859292144 | H84: 0.3220544666 | I84: 0.3220544666
C85: 1.027864271 | D85: 0.8847065485 | E85: -0.9983184808 | F85: =(LOOKUP(Sheet2!C85+0.0001,Sheet2!$C$505:$C$1005,$D$505:$D$1005)-D85)/0.0001 -> -0.9324737184 | G85: =(LOOKUP(Sheet2!C85+0.0001,Sheet2!$C$505:$C$1005,$E$505:$E$1005)-E85)/0.0001 -> -0.173452733 | H85: 0.1860135353 | I85: 0.1860135353
C86: 1.040399202 | D86: 0.872743494 | E86: -0.9997920282 | F86: =(LOOKUP(Sheet2!C86+0.0001,Sheet2!$C$505:$C$1005,$D$505:$D$1005)-D86)/0.0001 -> -0.9765326603 | G86: =(LOOKUP(Sheet2!C86+0.0001,Sheet2!$C$505:$C$1005,$E$505:$E$1005)-E86)/0.0001 -> -0.06073099742 | H86: 0.06219044164 | I86: 0.06219044164
C87: 1.052934132 | D87: 0.8602319508 | E87: -0.9998519161 | F87: =(LOOKUP(Sheet2!C87+0.0001,Sheet2!$C$505:$C$1005,$D$505:$D$1005)-D87)/0.0001 -> -1.019977886 | G87: =(LOOKUP(Sheet2!C87+0.0001,Sheet2!$C$505:$C$1005,$E$505:$E$1005)-E87)/0.0001 -> 0.05207660893 | H87: -0.0510566059 | I87: -0.0510566059
C88: 1.065469062 | D88: 0.8471797819 | E88: -0.9984980597 | F88: =(LOOKUP(Sheet2!C88+0.0001,Sheet2!$C$505:$C$1005,$D$505:$D$1005)-D88)/0.0001 -> -1.06278209 | G88: =(LOOKUP(Sheet2!C88+0.0001,Sheet2!$C$505:$C$1005,$E$505:$E$1005)-E88)/0.0001 -> 0.1648105814 | H88: -0.1550746695 | I88: -0.1550746695
C89: 1.078003992 | D89: 0.8335951902 | E89: -0.9957323733 | F89: =(LOOKUP(Sheet2!C89+0.0001,Sheet2!$C$505:$C$1005,$D$505:$D$1005)-D89)/0.0001 -> -1.104918374 | G89: =(LOOKUP(Sheet2!C89+0.0001,Sheet2!$C$505:$C$1005,$E$505:$E$1005)-E89)/0.0001 -> 0.2773115193 | H89: -0.2509791907 | I89: -0.2509791907
C90: 1.090538922 | D90: 0.8194867131 | E90: -0.9915587676 | F90: =(LOOKUP(Sheet2!C90+0.0001,Sheet2!$C$505:$C$1005,$D$505:$D$1005)-D90)/0.0001 -> -1.146360255 | G90: =(LOOKUP(Sheet2!C90+0.0001,Sheet2!$C$505:$C$1005,$E$505:$E$1005)-E90)/0.0001 -> 0.3894203516 | H90: -0.3397015466 | I90: -0.3397015466
C91: 1.103073852 | D91: 0.8048632174 | E91: -0.9859831437 | F91: =(LOOKUP(Sheet2!C91+0.0001,Sheet2!$C$505:$C$1005,$D$505:$D$1005)-D91)/0.0001 -> -1.187081689 | G91: =(LOOKUP(Sheet2!C91+0.0001,Sheet2!$C$505:$C$1005,$E$505:$E$1005)-E91)/0.0001 -> 0.5009785616 | H91: -0.4220253469 | I91: -0.4220253469
C92: 1.115608782 | D92: 0.7897338933 | E92: -0.9790133854 | F92: =(LOOKUP(Sheet2!C92+0.0001,Sheet2!$C$505:$C$1005,$D$505:$D$1005)-D92)/0.0001 -> -1.227057083 | G92: =(LOOKUP(Sheet2!C92+0.0001,Sheet2!$C$505:$C$1005,$E$505:$E$1005)-E92)/0.0001 -> 0.6118284111 | H92: -0.498614465 | I92: -0.498614465
C93: 1.128143713 | D93: 0.774108249 | E93: -0.9706593476 | F93: =(LOOKUP(Sheet2!C93+0.0001,Sheet2!$C$505:$C$1005,$D$505:$D$1005)-D93)/0.0001 -> -1.266261315 | G93: =(LOOKUP(Sheet2!C93+0.0001,Sheet2!$C$505:$C$1005,$E$505:$E$1005)-E93)/0.0001 -> 0.7218131636 | H93: -0.5700349168 | I93: -0.5700349168
C94: 1.140678643 | D94: 0.7579961049 | E94: -0.9609328425 | F94: =(LOOKUP(Sheet2!C94+0.0001,Sheet2!$C$505:$C$1005,$D$505:$D$1005)-D94)/0.0001 -> -1.304669747 | G94: =(LOOKUP(Sheet2!C94+0.0001,Sheet2!$C$505:$C$1005,$E$505:$E$1005)-E94)/0.0001 -> 0.8307773058 | H94: -0.6367721087 | I94: -0.6367721087
C95: 1.153213573 | D95: 0.7414075868 | E95: -0.9498476229 | F95: =(LOOKUP(Sheet2!C95+0.0001,Sheet2!$C$505:$C$1005,$D$505:$D$1005)-D95)/0.0001 -> -1.342258239 | G95: =(LOOKUP(Sheet2!C95+0.0001,Sheet2!$C$505:$C$1005,$E$505:$E$1005)-E95)/0.0001 -> 0.9385667674 | H95: -0.6992445569 | I95: -0.6992445569
C96: 1.165748503 | D96: 0.7243531199 | E96: -0.9374193628 | F96: =(LOOKUP(Sheet2!C96+0.0001,Sheet2!$C$505:$C$1005,$D$505:$D$1005)-D96)/0.0001 -> -1.379003168 | G96: =(LOOKUP(Sheet2!C96+0.0001,Sheet2!$C$505:$C$1005,$E$505:$E$1005)-E96)/0.0001 -> 1.045029139 | H96: -0.7578148934 | I96: -0.7578148934
C97: 1.178283433 | D97: 0.7068434225 | E97: -0.9236656352 | F97: =(LOOKUP(Sheet2!C97+0.0001,Sheet2!$C$505:$C$1005,$D$505:$D$1005)-D97)/0.0001 -> -1.414881443 | G97: =(LOOKUP(Sheet2!C97+0.0001,Sheet2!$C$505:$C$1005,$E$505:$E$1005)-E97)/0.0001 -> 1.150013888 | H97: -0.8127987641 | I97: -0.8127987641
C98: 1.190818363 | D98: 0.6888894988 | E98: -0.9086058872 | F98: =(LOOKUP(Sheet2!C98+0.0001,Sheet2!$C$505:$C$1005,$D$505:$D$1005)-D98)/0.0001 -> -1.449870514 | G98: =(LOOKUP(Sheet2!C98+0.0001,Sheet2!$C$505:$C$1005,$E$505:$E$1005)-E98)/0.0001 -> 1.253372571 | H98: -0.8644720744 | I98: -0.8644720744
C99: 1.203353293 | D99: 0.6705026321 | E99: -0.8922614126 | F99: =(LOOKUP(Sheet2!C99+0.0001,Sheet2!$C$505:$C$1005,$D$505:$D$1005)-D99)/0.0001 -> -1.483948392 | G99: =(LOOKUP(Sheet2!C99+0.0001,Sheet2!$C$505:$C$1005,$E$505:$E$1005)-E99)/0.0001 -> 1.354959043 | H99: -0.9130769304 | I99: -0.9130769304
C100: 1.215888224 | D100: 0.651694378 | E100: -0.8746553218 | F100: =(LOOKUP(Sheet2!C100+0.0001,Sheet2!$C$505:$C$1005,$D$505:$D$1005)-D100)/0.0001 -> -1.517093661 | G100: =(LOOKUP(Sheet2!C100+0.0001,Sheet2!$C$505:$C$1005,$E$505:$E$1005)-E100)/0.0001 -> 1.454629665 | H100: -0.9588265399 | I100: -0.9588265399
C101: 1.228423154 | D101: 0.6324765568 | E101: -0.8558125089 | F101: =(LOOKUP(Sheet2!C101+0.0001,Sheet2!$C$505:$C$1005,$D$505:$D$1005)-D101)/0.0001 -> -1.549285489 | G101: =(LOOKUP(Sheet2!C101+0.0001,Sheet2!$C$505:$C$1005,$E$505:$E$1005)-E101)/0.0001 -> 1.552243509 | H101: -1.00190928 | I101: -1.00190928
C102: 1.240958084 | D102: 0.6128612463 | E102: -0.8357596168 | F102: =(LOOKUP(Sheet2!C102+0.0001,Sheet2!$C$505:$C$1005,$D$505:$D$1005)-D102)/0.0001 -> -1.580503646 | G102: =(LOOKUP(Sheet2!C102+0.0001,Sheet2!$C$505:$C$1005,$E$505:$E$1005)-E102)/0.0001 -> 1.647662553 | H102: -1.042492092 | I102: -1.042492092
C103: 1.253493014 | D103: 0.5928607739 | E103: -0.8145249994 | F103: =(LOOKUP(Sheet2!C103+0.0001,Sheet2!$C$505:$C$1005,$D$505:$D$1005)-D103)/0.0001 -> -1.610728511 | G103: =(LOOKUP(Sheet2!C103+0.0001,Sheet2!$C$505:$C$1005,$E$505:$E$1005)-E103)/0.0001 -> 1.740751878 | H103: -1.080723328 | I103: -1.080723328
C104: 1.266027944 | D104: 0.5724877093 | E104: -0.7921386814 | F104: =(LOOKUP(Sheet2!C104+0.0001,Sheet2!$C$505:$C$1005,$D$505:$D$1005)-D104)/0.0001 -> -1.63994109 | G104: =(LOOKUP(Sheet2!C104+0.0001,Sheet2!$C$505:$C$1005,$E$505:$E$1005)-E104)/0.0001 -> 1.83137986 | H104: -1.11673515 | I104: -1.11673515
C105: 1.278562874 | D105: 0.5517548562 | E105: -0.768632316 | F105: =(LOOKUP(Sheet2!C105+0.0001,Sheet2!$C$505:$C$1005,$D$505:$D$1005)-D105)/0.0001 -> -1.668123024 | G105: =(LOOKUP(Sheet2!C105+0.0001,Sheet2!$C$505:$C$1005,$E$505:$E$1005)-E105)/0.0001 -> 1.919418357 | H105: -1.150645563 | I105: -1.150645563
C106: 1.291097804 | D106: 0.5306752445 | E106: -0.7440391402 | F106: =(LOOKUP(Sheet2!C106+0.0001,Sheet2!$C$505:$C$1005,$D$505:$D$1005)-D106)/0.0001 -> -1.695256601 | G106: =(LOOKUP(Sheet2!C106+0.0001,Sheet2!$C$505:$C$1005,$E$505:$E$1005)-E106)/0.0001 -> 2.004742885 | H106: -1.182560141 | I106: -1.182560141
C107: 1.303632735 | D107: 0.509262122 | E107: -0.7183939276 | F107: =(LOOKUP(Sheet2!C107+0.0001,Sheet2!$C$505:$C$1005,$D$505:$D$1005)-D107)/0.0001 -> -1.721324768 | G107: =(LOOKUP(Sheet2!C107+0.0001,Sheet2!$C$505:$C$1005,$E$505:$E$1005)-E107)/0.0001 -> 2.087232799 | H107: -1.2125735 | I107: -1.2125735
C108: 1.316167665 | D108: 0.4875289461 | E108: -0.6917329392 | F108: =(LOOKUP(Sheet2!C108+0.0001,Sheet2!$C$505:$C$1005,$D$505:$D$1005)-D108)/0.0001 -> -1.746311143 | G108: =(LOOKUP(Sheet2!C108+0.0001,Sheet2!$C$505:$C$1005,$E$505:$E$1005)-E108)/0.0001 -> 2.166771463 | H108: -1.240770565 | I108: -1.240770565
C109: 1.328702595 | D109: 0.4654893754 | E109: -0.6640938726 | F109: =(LOOKUP(Sheet2!C109+0.0001,Sheet2!$C$505:$C$1005,$D$505:$D$1005)-D109)/0.0001 -> -1.770200022 | G109: =(LOOKUP(Sheet2!C109+0.0001,Sheet2!$C$505:$C$1005,$E$505:$E$1005)-E109)/0.0001 -> 2.243246413 | H109: -1.267227649 | I109: -1.267227649
C110: 1.341237525 | D110: 0.4431572608 | E110: -0.635515808 | F110: =(LOOKUP(Sheet2!C110+0.0001,Sheet2!$C$505:$C$1005,$D$505:$D$1005)-D110)/0.0001 -> -1.792976393 | G110: =(LOOKUP(Sheet2!C110+0.0001,Sheet2!$C$505:$C$1005,$E$505:$E$1005)-E110)/0.0001 -> 2.316549516 | H110: -1.292013395 | I110: -1.292013395
C111: 1.353772455 | D111: 0.4205466375 | E111: -0.6060391535 | F111: =(LOOKUP(Sheet2!C111+0.0001,Sheet2!$C$505:$C$1005,$D$505:$D$1005)-D111)/0.0001 -> -1.814625941 | G111: =(LOOKUP(Sheet2!C111+0.0001,Sheet2!$C$505:$C$1005,$E$505:$E$1005)-E111)/0.0001 -> 2.386577126 | H111: -1.315189578 | I111: -1.315189578
C112: 1.366307385 | D112: 0.3976717153 | E112: -0.5757055878 | F112: =(LOOKUP(Sheet2!C112+0.0001,Sheet2!$C$505:$C$1005,$D$505:$D$1005)-D112)/0.0001 -> -1.83513506 | G112: =(LOOKUP(Sheet2!C112+0.0001,Sheet2!$C$505:$C$1005,$E$505:$E$1005)-E112)/0.0001 -> 2.453230226 | H112: -1.336811813 | I112: -1.336811813
C113: 1.378842315 | D113: 0.3745468703 | E113: -0.5445580011 | F113: =(LOOKUP(Sheet2!C113+0.0001,Sheet2!$C$505:$C$1005,$D$505:$D$1005)-D113)/0.0001 -> -1.854490861 | G113: =(LOOKUP(Sheet2!C113+0.0001,Sheet2!$C$505:$C$1005,$E$505:$E$1005)-E113)/0.0001 -> 2.516414573 | H113: -1.356930156 | I113: -1.356930156
C114: 1.391377246 | D114: 0.3511866358 | E114: -0.5126404346 | F114: =(LOOKUP(Sheet2!C114+0.0001,Sheet2!$C$505:$C$1005,$D$505:$D$1005)-D114)/0.0001 -> -1.872681179 | G114: =(LOOKUP(Sheet2!C114+0.0001,Sheet2!$C$505:$C$1005,$E$505:$E$1005)-E114)/0.0001 -> 2.576040826 | H114: -1.375589638 | I114: -1.375589638
C115: 1.403912176 | D115: 0.3276056928 | E115: -0.4799980183 | F115: =(LOOKUP(Sheet2!C115+0.0001,Sheet2!$C$505:$C$1005,$D$505:$D$1005)-D115)/0.0001 -> -1.889694583 | G115: =(LOOKUP(Sheet2!C115+0.0001,Sheet2!$C$505:$C$1005,$E$505:$E$1005)-E115)/0.0001 -> 2.632024676 | H115: -1.392830725 | I115: -1.392830725
C116: 1.416447106 | D116: 0.303818861 | E116: -0.446676907 | F116: =(LOOKUP(Sheet2!C116+0.0001,Sheet2!$C$505:$C$1005,$D$505:$D$1005)-D116)/0.0001 -> -1.90552038 | G116: =(LOOKUP(Sheet2!C116+0.0001,Sheet2!$C$505:$C$1005,$E$505:$E$1005)-E116)/0.0001 -> 2.684286966 | H116: -1.408689718 | I116: -1.408689718
C117: 1.428982036 | D117: 0.2798410898 | E117: -0.4127242154 | F117: =(LOOKUP(Sheet2!C117+0.0001,Sheet2!$C$505:$C$1005,$D$505:$D$1005)-D117)/0.0001 -> -1.920148624 | G117: =(LOOKUP(Sheet2!C117+0.0001,Sheet2!$C$505:$C$1005,$E$505:$E$1005)-E117)/0.0001 -> 2.732753799 | H117: -1.423199102 | I117: -1.423199102
C118: 1.441516966 | D118: 0.2556874482 | E118: -0.3781879508 | F118: =(LOOKUP(Sheet2!C118+0.0001,Sheet2!$C$505:$C$1005,$D$505:$D$1005)-D118)/0.0001 -> -1.933570123 | G118: =(LOOKUP(Sheet2!C118+0.0001,Sheet2!$C$505:$C$1005,$E$505:$E$1005)-E118)/0.0001 -> 2.777356645 | H118: -1.436387857 | I118: -1.436387857
C119: 1.454051896 | D119: 0.231373116 | E119: -0.343116946 | F119: =(LOOKUP(Sheet2!C119+0.0001,Sheet2!$C$505:$C$1005,$D$505:$D$1005)-D119)/0.0001 -> -1.945776439 | G119: =(LOOKUP(Sheet2!C119+0.0001,Sheet2!$C$505:$C$1005,$E$505:$E$1005)-E119)/0.0001 -> 2.818032437 | H119: -1.448281714 | I119: -1.448281714
C120: 1.466586826 | D120: 0.206913374 | E120: -0.3075607898 | F120: =(LOOKUP(Sheet2!C120+0.0001,Sheet2!$C$505:$C$1005,$D$505:$D$1005)-D120)/0.0001 -> -1.956759904 | G120: =(LOOKUP(Sheet2!C120+0.0001,Sheet2!$C$505:$C$1005,$E$505:$E$1005)-E120)/0.0001 -> 2.854723661 | H120: -1.458903392 | I120: -1.458903392
C121: 1.479121756 | D121: 0.1823235941 | E121: -0.2715697569 | F121: =(LOOKUP(Sheet2!C121+0.0001,Sheet2!$C$505:$C$1005,$D$505:$D$1005)-D121)/0.0001 -> -1.966513613 | G121: =(LOOKUP(Sheet2!C121+0.0001,Sheet2!$C$505:$C$1005,$E$505:$E$1005)-E121)/0.0001 -> 2.887378439 | H121: -1.468272795 | I121: -1.468272795
C122: 1.491656687 | D122: 0.1576192302 | E122: -0.2351947369 | F122: =(LOOKUP(Sheet2!C122+0.0001,Sheet2!$C$505:$C$1005,$D$505:$D$1005)-D122)/0.0001 -> -1.975031438 | G122: =(LOOKUP(Sheet2!C122+0.0001,Sheet2!$C$505:$C$1005,$E$505:$E$1005)-E122)/0.0001 -> 2.915950598 | H122: -1.476407181 | I122: -1.476407181
C123: 1.504191617 | D123: 0.1328158081 | E123: -0.1984871625 | F123: =(LOOKUP(Sheet2!C123+0.0001,Sheet2!$C$505:$C$1005,$D$505:$D$1005)-D123)/0.0001 -> -1.982308025 | G123: =(LOOKUP(Sheet2!C123+0.0001,Sheet2!$C$505:$C$1005,$E$505:$E$1005)-E123)/0.0001 -> 2.940399738 | H123: -1.483321311 | I123: -1.483321311
C124: 1.516726547 | D124: 0.107928916 | E124: -0.1614989364 | F124: =(LOOKUP(Sheet2!C124+0.0001,Sheet2!$C$505:$C$1005,$D$505:$D$1005)-D124)/0.0001 -> -1.9883388 | G124: =(LOOKUP(Sheet2!C124+0.0001,Sheet2!$C$505:$C$1005,$E$505:$E$1005)-E124)/0.0001 -> 2.960691289 | H124: -1.489027569 | I124: -1.489027569
C125: 1.529261477 | D125: 0.08297419434 | E125: -0.1242823583 | F125: =(LOOKUP(Sheet2!C125+0.0001,Sheet2!$C$505:$C$1005,$D$505:$D$1005)-D125)/0.0001 -> -1.993119974 | G125: =(LOOKUP(Sheet2!C125+0.0001,Sheet2!$C$505:$C$1005,$E$505:$E$1005)-E125)/0.0001 -> 2.97679656 | H125: -1.493536063 | I125: -1.493536063
C126: 1.541796407 | D126: 0.05796732629 | E126: -0.08689005077 | F126: =(LOOKUP(Sheet2!C126+0.0001,Sheet2!$C$505:$C$1005,$D$505:$D$1005)-D126)/0.0001 -> -1.996648542 | G126: =(LOOKUP(Sheet2!C126+0.0001,Sheet2!$C$505:$C$1005,$E$505:$E$1005)-E126)/0.0001 -> 2.988692778 | H126: -1.496854712 | I126: -1.496854712
C127: 1.554331337 | D127: 0.03292402781 | E127: -0.0493748847 | F127: =(LOOKUP(Sheet2!C127+0.0001,Sheet2!$C$505:$C$1005,$D$505:$D$1005)-D127)/0.0001 -> -1.998922286 | G127: =(LOOKUP(Sheet2!C127+0.0001,Sheet2!$C$505:$C$1005,$E$505:$E$1005)-E127)/0.0001 -> 2.996363123 | H127: -1.498989303 | I127: -1.498989303
C128: 1.566866267 | D128: 0.007860037725 | E128: -0.01178990484 | F128: =(LOOKUP(Sheet2!C128+0.0001,Sheet2!$C$505:$C$1005,$D$505:$D$1005)-D128)/0.0001 -> -1.999939778 | G128: =(LOOKUP(Sheet2!C128+0.0001,Sheet2!$C$505:$C$1005,$E$505:$E$1005)-E128)/0.0001 -> 2.99979675 | H128: -1.49994354 | I128: -1.49994354
C129: 1.579401198 | D129: -0.01720889212 | E129: 0.02581174541 | F129: =(LOOKUP(Sheet2!C129+0.0001,Sheet2!$C$505:$C$1005,$D$505:$D$1005)-D129)/0.0001 -> -1.999700377 | G129: =(LOOKUP(Sheet2!C129+0.0001,Sheet2!$C$505:$C$1005,$E$505:$E$1005)-E129)/0.0001 -> 2.998988804 | H129: -1.499719077 | I129: -1.499719077
C130: 1.591936128 | D130: -0.04226700677 | E130: 0.06337689904 | F130: =(LOOKUP(Sheet2!C130+0.0001,Sheet2!$C$505:$C$1005,$D$505:$D$1005)-D130)/0.0001 -> -1.998204235 | G130: =(LOOKUP(Sheet2!C130+0.0001,Sheet2!$C$505:$C$1005,$E$505:$E$1005)-E130)/0.0001 -> 2.993940426 | H130: -1.498315525 | I130: -1.498315525
C131: 1.604471058 | D131: =SIN(2*t) -> -0.06729855809 | E131: =COS(3*t) -> 0.1008524407 | F131: =(LOOKUP(Sheet2!C131+0.0001,Sheet2!$C$505:$C$1005,$D$505:$D$1005)-D131)/0.0001 -> -1.995452291 | G131: =(LOOKUP(Sheet2!C131+0.0001,Sheet2!$C$505:$C$1005,$E$505:$E$1005)-E131)/0.0001 -> 2.984658756 | H131: -1.495730451 | I131: -1.495730451
C132: 1.617005988 | D132: -0.09228781463 | E132: 0.1381853816 | F132: =(LOOKUP(Sheet2!C132+0.0001,Sheet2!$C$505:$C$1005,$D$505:$D$1005)-D132)/0.0001 -> -1.991446276 | G132: =(LOOKUP(Sheet2!C132+0.0001,Sheet2!$C$505:$C$1005,$E$505:$E$1005)-E132)/0.0001 -> 2.971156916 | H132: -1.491959363 | I132: =IF(H132>100,100,IF(H132<-100,-100,H132)) -> -1.491959363
C133: =C132+B$12 -> 1.629540918 | D133: -0.1172190715 | E133: 0.1753229349 | F133: =(LOOKUP(Sheet2!C133+0.0001,Sheet2!$C$505:$C$1005,$D$505:$D$1005)-D133)/0.0001 -> -1.986188706 | G133: =(LOOKUP(Sheet2!C133+0.0001,Sheet2!$C$505:$C$1005,$E$505:$E$1005)-E133)/0.0001 -> 2.953453998 | H133: =G133/F133 -> -1.486995666 | I133: -1.486995666
C134: 1.642075848 | D134: -0.1420766603 | E134: 0.2122125896 | F134: =(LOOKUP(Sheet2!C134+0.0001,Sheet2!$C$505:$C$1005,$D$505:$D$1005)-D134)/0.0001 -> -1.979682886 | G134: =(LOOKUP(Sheet2!C134+0.0001,Sheet2!$C$505:$C$1005,$E$505:$E$1005)-E134)/0.0001 -> 2.931575034 | H134: -1.480830619 | I134: -1.480830619
C135: 1.654610778 | D135: -0.1668449589 | E135: 0.2488021856 | F135: =(LOOKUP(Sheet2!C135+0.0001,Sheet2!$C$505:$C$1005,$D$505:$D$1005)-D135)/0.0001 -> -1.971932905 | G135: =(LOOKUP(Sheet2!C135+0.0001,Sheet2!$C$505:$C$1005,$E$505:$E$1005)-E135)/0.0001 -> 2.905550958 | H135: -1.473453255 | I135: -1.473453255
C136: 1.667145709 | D136: -0.1915084013 | E136: 0.2850399868 | F136: =(LOOKUP(Sheet2!C136+0.0001,Sheet2!$C$505:$C$1005,$D$505:$D$1005)-D136)/0.0001 -> -1.962943633 | G136: =(LOOKUP(Sheet2!C136+0.0001,Sheet2!$C$505:$C$1005,$E$505:$E$1005)-E136)/0.0001 -> 2.875418568 | H136: -1.464850299 | I136: -1.464850299
C137: 1.679680639 | D137: -0.2160514873 | E137: 0.3208747547 | F137: =(LOOKUP(Sheet2!C137+0.0001,Sheet2!$C$505:$C$1005,$D$505:$D$1005)-D137)/0.0001 -> -1.95272072 | G137: =(LOOKUP(Sheet2!C137+0.0001,Sheet2!$C$505:$C$1005,$E$505:$E$1005)-E137)/0.0001 -> 2.841220469 | H137: -1.455006054 | I137: -1.455006054
C138: 1.692215569 | D138: -0.2404587926 | E138: 0.3562558206 | F138: =(LOOKUP(Sheet2!C138+0.0001,Sheet2!$C$505:$C$1005,$D$505:$D$1005)-D138)/0.0001 -> -1.94127059 | G138: =(LOOKUP(Sheet2!C138+0.0001,Sheet2!$C$505:$C$1005,$E$505:$E$1005)-E138)/0.0001 -> 2.803005017 | H138: -1.443902272 | I138: -1.443902272
C139: 1.704750499 | D139: -0.2647149779 | E139: 0.3911331573 | F139: =(LOOKUP(Sheet2!C139+0.0001,Sheet2!$C$505:$C$1005,$D$505:$D$1005)-D139)/0.0001 -> -1.92860044 | G139: =(LOOKUP(Sheet2!C139+0.0001,Sheet2!$C$505:$C$1005,$E$505:$E$1005)-E139)/0.0001 -> 2.760826245 | H139: -1.431518 | I139: -1.431518
C140: 1.717285429 | D140: -0.2888047991 | E140: 0.4254574498 | F140: =(LOOKUP(Sheet2!C140+0.0001,Sheet2!$C$505:$C$1005,$D$505:$D$1005)-D140)/0.0001 -> -1.914718232 | G140: =(LOOKUP(Sheet2!C140+0.0001,Sheet2!$C$505:$C$1005,$E$505:$E$1005)-E140)/0.0001 -> 2.714743793 | H140: -1.417829395 | I140: -1.417829395
C141: 1.729820359 | D141: -0.3127131167 | E141: 0.4591801652 | F141: =(LOOKUP(Sheet2!C141+0.0001,Sheet2!$C$505:$C$1005,$D$505:$D$1005)-D141)/0.0001 -> -1.89963269 | G141: =(LOOKUP(Sheet2!C141+0.0001,Sheet2!$C$505:$C$1005,$E$505:$E$1005)-E141)/0.0001 -> 2.664822819 | H141: -1.402809518 | I141: -1.402809518
C142: 1.742355289 | D142: -0.336424905 | E142: 0.4922536212 | F142: =(LOOKUP(Sheet2!C142+0.0001,Sheet2!$C$505:$C$1005,$D$505:$D$1005)-D142)/0.0001 -> -1.883353296 | G142: =(LOOKUP(Sheet2!C142+0.0001,Sheet2!$C$505:$C$1005,$E$505:$E$1005)-E142)/0.0001 -> 2.611133909 | H142: -1.386428088 | I142: -1.386428088
C143: 1.75489022 | D143: -0.359925262 | E143: 0.5246310534 | F143: =(LOOKUP(Sheet2!C143+0.0001,Sheet2!$C$505:$C$1005,$D$505:$D$1005)-D143)/0.0001 -> -1.865890281 | G143: =(LOOKUP(Sheet2!C143+0.0001,Sheet2!$C$505:$C$1005,$E$505:$E$1005)-E143)/0.0001 -> 2.553752977 | H143: -1.368651203 | I143: -1.368651203
C144: 1.76742515 | D144: -0.3831994186 | E144: 0.5562666816 | F144: =(LOOKUP(Sheet2!C144+0.0001,Sheet2!$C$505:$C$1005,$D$505:$D$1005)-D144)/0.0001 -> -1.847254618 | G144: =(LOOKUP(Sheet2!C144+0.0001,Sheet2!$C$505:$C$1005,$E$505:$E$1005)-E144)/0.0001 -> 2.492761157 | H144: -1.34944102 | I144: -1.34944102
C145: 1.77996008 | D145: -0.4062327478 | E145: 0.5871157745 | F145: =(LOOKUP(Sheet2!C145+0.0001,Sheet2!$C$505:$C$1005,$D$505:$D$1005)-D145)/0.0001 -> -1.827458021 | G145: =(LOOKUP(Sheet2!C145+0.0001,Sheet2!$C$505:$C$1005,$E$505:$E$1005)-E145)/0.0001 -> 2.428244688 | H145: -1.328755386 | I145: -1.328755386
C146: 1.79249501 | D146: -0.4290107739 | E146: 0.6171347129 | F146: =(LOOKUP(Sheet2!C146+0.0001,Sheet2!$C$505:$C$1005,$D$505:$D$1005)-D146)/0.0001 -> -1.80651293 | G146: =(LOOKUP(Sheet2!C146+0.0001,Sheet2!$C$505:$C$1005,$E$505:$E$1005)-E146)/0.0001 -> 2.360294794 | H146: -1.306547412 | I146: -1.306547412
C147: 1.80502994 | D147: -0.4515191818 | E147: 0.6462810514 | F147: =(LOOKUP(Sheet2!C147+0.0001,Sheet2!$C$505:$C$1005,$D$505:$D$1005)-D147)/0.0001 -> -1.78443251 | G147: =(LOOKUP(Sheet2!C147+0.0001,Sheet2!$C$505:$C$1005,$E$505:$E$1005)-E147)/0.0001 -> 2.289007552 | H147: -1.282764991 | I147: -1.282764991
C148: 1.81756487 | D148: -0.4737438257 | E148: 0.6745135786 | F148: =(LOOKUP(Sheet2!C148+0.0001,Sheet2!$C$505:$C$1005,$D$505:$D$1005)-D148)/0.0001 -> -1.761230635 | G148: =(LOOKUP(Sheet2!C148+0.0001,Sheet2!$C$505:$C$1005,$E$505:$E$1005)-E148)/0.0001 -> 2.21448376 | H148: -1.257350239 | I148: -1.257350239
C149: 1.8300998 | D149: -0.4956707382 | E149: 0.7017923748 | F149: =(LOOKUP(Sheet2!C149+0.0001,Sheet2!$C$505:$C$1005,$D$505:$D$1005)-D149)/0.0001 -> -1.73692189 | G149: =(LOOKUP(Sheet2!C149+0.0001,Sheet2!$C$505:$C$1005,$E$505:$E$1005)-E149)/0.0001 -> 2.13682879 | H149: -1.230238851 | I149: -1.230238851
C150: 1.842634731 | D150: -0.517286139 | E150: 0.7280788691 | F150: =(LOOKUP(Sheet2!C150+0.0001,Sheet2!$C$505:$C$1005,$D$505:$D$1005)-D150)/0.0001 -> -1.711521549 | G150: =(LOOKUP(Sheet2!C150+0.0001,Sheet2!$C$505:$C$1005,$E$505:$E$1005)-E150)/0.0001 -> 2.056152444 | H150: -1.201359366 | I150: -1.201359366
C151: 1.855169661 | D151: -0.5385764435 | E151: 0.7533358937 | F151: =(LOOKUP(Sheet2!C151+0.0001,Sheet2!$C$505:$C$1005,$D$505:$D$1005)-D151)/0.0001 -> -1.685045577 | G151: =(LOOKUP(Sheet2!C151+0.0001,Sheet2!$C$505:$C$1005,$E$505:$E$1005)-E151)/0.0001 -> 1.972568793 | H151: -1.170632308 | I151: -1.170632308
C152: 1.867704591 | D152: -0.5595282717 | E152: 0.7775277362 | F152: =(LOOKUP(Sheet2!C152+0.0001,Sheet2!$C$505:$C$1005,$D$505:$D$1005)-D152)/0.0001 -> -1.657510614 | G152: =(LOOKUP(Sheet2!C152+0.0001,Sheet2!$C$505:$C$1005,$E$505:$E$1005)-E152)/0.0001 -> 1.886196022 | H152: -1.137969197 | I152: -1.137969197
C153: 1.880239521 | D153: -0.5801284559 | E153: 0.8006201906 | F153: =(LOOKUP(Sheet2!C153+0.0001,Sheet2!$C$505:$C$1005,$D$505:$D$1005)-D153)/0.0001 -> -1.628933962 | G153: =(LOOKUP(Sheet2!C153+0.0001,Sheet2!$C$505:$C$1005,$E$505:$E$1005)-E153)/0.0001 -> 1.797156257 | H153: -1.103271402 | I153: -1.103271402
C154: 1.892774451 | D154: -0.6003640497 | E154: 0.8225806052 | F154: =(LOOKUP(Sheet2!C154+0.0001,Sheet2!$C$505:$C$1005,$D$505:$D$1005)-D154)/0.0001 -> -1.599333583 | G154: =(LOOKUP(Sheet2!C154+0.0001,Sheet2!$C$505:$C$1005,$E$505:$E$1005)-E154)/0.0001 -> 1.705575396 | H154: -1.066428801 | I154: -1.066428801
C155: 1.905309381 | D155: -0.6202223357 | E155: 0.8433779289 | F155: =(LOOKUP(Sheet2!C155+0.0001,Sheet2!$C$505:$C$1005,$D$505:$D$1005)-D155)/0.0001 -> -1.568728079 | G155: =(LOOKUP(Sheet2!C155+0.0001,Sheet2!$C$505:$C$1005,$E$505:$E$1005)-E155)/0.0001 -> 1.611582931 | H155: -1.027318216 | I155: -1.027318216
C156: 1.917844311 | D156: -0.6396908337 | E156: 0.8629827554 | F156: =(LOOKUP(Sheet2!C156+0.0001,Sheet2!$C$505:$C$1005,$D$505:$D$1005)-D156)/0.0001 -> -1.537136684 | G156: =(LOOKUP(Sheet2!C156+0.0001,Sheet2!$C$505:$C$1005,$E$505:$E$1005)-E156)/0.0001 -> 1.515311762 | H156: -0.9858015739 | I156: -0.9858015739
C157: 1.930379242 | D157: -0.6587573084 | E157: 0.8813673643 | F157: =(LOOKUP(Sheet2!C157+0.0001,Sheet2!$C$505:$C$1005,$D$505:$D$1005)-D157)/0.0001 -> -1.504579252 | G157: =(LOOKUP(Sheet2!C157+0.0001,Sheet2!$C$505:$C$1005,$E$505:$E$1005)-E157)/0.0001 -> 1.416898013 | H157: -0.9417237482 | I157: -0.9417237482
C158: 1.942914172 | D158: -0.6774097772 | E158: 0.8985057605 | F158: =(LOOKUP(Sheet2!C158+0.0001,Sheet2!$C$505:$C$1005,$D$505:$D$1005)-D158)/0.0001 -> -1.471076245 | G158: =(LOOKUP(Sheet2!C158+0.0001,Sheet2!$C$505:$C$1005,$E$505:$E$1005)-E158)/0.0001 -> 1.316480835 | H158: -0.8949099951 | I158: -0.8949099951
C159: 1.955449102 | D159: -0.6956365177 | E159: 0.9143737114 | F159: =(LOOKUP(Sheet2!C159+0.0001,Sheet2!$C$505:$C$1005,$D$505:$D$1005)-D159)/0.0001 -> -1.436648718 | G159: =(LOOKUP(Sheet2!C159+0.0001,Sheet2!$C$505:$C$1005,$E$505:$E$1005)-E159)/0.0001 -> 1.214202215 | H159: -0.8451629126 | I159: -0.8451629126
C160: 1.967984032 | D160: -0.7134260751 | E160: 0.9289487801 | F160: =(LOOKUP(Sheet2!C160+0.0001,Sheet2!$C$505:$C$1005,$D$505:$D$1005)-D160)/0.0001 -> -1.401318308 | G160: =(LOOKUP(Sheet2!C160+0.0001,Sheet2!$C$505:$C$1005,$E$505:$E$1005)-E160)/0.0001 -> 1.110206769 | H160: -0.7922588058 | I160: -0.7922588058
C161: 1.980518962 | D161: -0.7307672691 | E161: 0.9422103584 | F161: =(LOOKUP(Sheet2!C161+0.0001,Sheet2!$C$505:$C$1005,$D$505:$D$1005)-D161)/0.0001 -> -1.365107218 | G161: =(LOOKUP(Sheet2!C161+0.0001,Sheet2!$C$505:$C$1005,$E$505:$E$1005)-E161)/0.0001 -> 1.004641543 | H161: -0.735943323 | I161: -0.735943323
C162: 1.993053892 | D162: -0.7476492014 | E162: 0.954139695 | F162: =(LOOKUP(Sheet2!C162+0.0001,Sheet2!$C$505:$C$1005,$D$505:$D$1005)-D162)/0.0001 -> -1.328038206 | G162: =(LOOKUP(Sheet2!C162+0.0001,Sheet2!$C$505:$C$1005,$E$505:$E$1005)-E162)/0.0001 -> 0.8976557992 | H162: -0.6759261856 | I162: -0.6759261856
C163: 2.005588822 | D163: -0.7640612625 | E163: 0.9647199222 | F163: =(LOOKUP(Sheet2!C163+0.0001,Sheet2!$C$505:$C$1005,$D$505:$D$1005)-D163)/0.0001 -> -1.290134569 | G163: =(LOOKUP(Sheet2!C163+0.0001,Sheet2!$C$505:$C$1005,$E$505:$E$1005)-E163)/0.0001 -> 0.7894008122 | H163: -0.6118747851 | I163: -0.6118747851
C164: 2.018123752 | D164: -0.7799931378 | E164: 0.9739360802 | F164: =(LOOKUP(Sheet2!C164+0.0001,Sheet2!$C$505:$C$1005,$D$505:$D$1005)-D164)/0.0001 -> -1.251420127 | G164: =(LOOKUP(Sheet2!C164+0.0001,Sheet2!$C$505:$C$1005,$E$505:$E$1005)-E164)/0.0001 -> 0.6800296491 | H164: -0.5434063543 | I164: -0.5434063543
C165: 2.030658683 | D165: -0.7954348147 | E165: 0.9817751378 | F165: =(LOOKUP(Sheet2!C165+0.0001,Sheet2!$C$505:$C$1005,$D$505:$D$1005)-D165)/0.0001 -> -1.211919212 | G165: =(LOOKUP(Sheet2!C165+0.0001,Sheet2!$C$505:$C$1005,$E$505:$E$1005)-E165)/0.0001 -> 0.5696969556 | H165: -0.470078327 | I165: -0.470078327
C166: 2.043193613 | D166: -0.8103765887 | E166: 0.9882260109 | F166: =(LOOKUP(Sheet2!C166+0.0001,Sheet2!$C$505:$C$1005,$D$505:$D$1005)-D166)/0.0001 -> -1.171656648 | G166: =(LOOKUP(Sheet2!C166+0.0001,Sheet2!$C$505:$C$1005,$E$505:$E$1005)-E166)/0.0001 -> 0.4585587371 | H166: -0.3913763797 | I166: -0.3913763797
C167: 2.055728543 | D167: -0.8248090694 | E167: 0.9932795782 | F167: =(LOOKUP(Sheet2!C167+0.0001,Sheet2!$C$505:$C$1005,$D$505:$D$1005)-D167)/0.0001 -> -1.130657738 | G167: =(LOOKUP(Sheet2!C167+0.0001,Sheet2!$C$505:$C$1005,$E$505:$E$1005)-E167)/0.0001 -> 0.3467721377 | H167: -0.3066994776 | I167: -0.3066994776
C168: 2.068263473 | D168: -0.8387231864 | E168: 0.9969286942 | F168: =(LOOKUP(Sheet2!C168+0.0001,Sheet2!$C$505:$C$1005,$D$505:$D$1005)-D168)/0.0001 -> -1.08894825 | G168: =(LOOKUP(Sheet2!C168+0.0001,Sheet2!$C$505:$C$1005,$E$505:$E$1005)-E168)/0.0001 -> 0.2344952186 | H168: -0.2153410124 | I168: -0.2153410124
C169: 2.080798403 | D169: -0.8521101954 | E169: 0.9991681993 | F169: =(LOOKUP(Sheet2!C169+0.0001,Sheet2!$C$505:$C$1005,$D$505:$D$1005)-D169)/0.0001 -> -1.046554396 | G169: =(LOOKUP(Sheet2!C169+0.0001,Sheet2!$C$505:$C$1005,$E$505:$E$1005)-E169)/0.0001 -> 0.1218867342 | H169: -0.1164647864 | I169: -0.1164647864
C170: 2.093333333 | D170: -0.8649616829 | E170: 0.9999949269 | F170: =(LOOKUP(Sheet2!C170+0.0001,Sheet2!$C$505:$C$1005,$D$505:$D$1005)-D170)/0.0001 -> -1.003502819 | G170: =(LOOKUP(Sheet2!C170+0.0001,Sheet2!$C$505:$C$1005,$E$505:$E$1005)-E170)/0.0001 -> 0.009105907522 | H170: -0.00907412251 | I170: -0.00907412251
C171: 2.105868263 | D171: -0.8772695723 | E171: 0.9994077081 | F171: =(LOOKUP(Sheet2!C171+0.0001,Sheet2!$C$505:$C$1005,$D$505:$D$1005)-D171)/0.0001 -> -0.9598205762 | G171: =(LOOKUP(Sheet2!C171+0.0001,Sheet2!$C$505:$C$1005,$E$505:$E$1005)-E171)/0.0001 -> -0.1036877944 | H171: 0.1080283097 | I171: 0.1080283097
C172: 2.118403194 | D172: -0.8890261285 | E172: 0.9974073731 | F172: =(LOOKUP(Sheet2!C172+0.0001,Sheet2!$C$505:$C$1005,$D$505:$D$1005)-D172)/0.0001 -> -0.9155351195 | G172: =(LOOKUP(Sheet2!C172+0.0001,Sheet2!$C$505:$C$1005,$E$505:$E$1005)-E172)/0.0001 -> -0.2163348867 | H172: 0.2362933787 | I172: 0.2362933787
C173: 2.130938124 | D173: -0.9002239629 | E173: 0.9939967503 | F173: =(LOOKUP(Sheet2!C173+0.0001,Sheet2!$C$505:$C$1005,$D$505:$D$1005)-D173)/0.0001 -> -0.8706742809 | G173: =(LOOKUP(Sheet2!C173+0.0001,Sheet2!$C$505:$C$1005,$E$505:$E$1005)-E173)/0.0001 -> -0.3286760914 | H173: 0.377496038 | I173: 0.377496038
C174: 2.143473054 | D174: -0.910856038 | E174: 0.9891806622 | F174: =(LOOKUP(Sheet2!C174+0.0001,Sheet2!$C$505:$C$1005,$D$505:$D$1005)-D174)/0.0001 -> -0.8252662541 | G174: =(LOOKUP(Sheet2!C174+0.0001,Sheet2!$C$505:$C$1005,$E$505:$E$1005)-E174)/0.0001 -> -0.4405525634 | H174: 0.5338308228 | I174: 0.5338308228
C175: 2.156007984 | D175: -0.9209156721 | E175: 0.9829659185 | F175: =(LOOKUP(Sheet2!C175+0.0001,Sheet2!$C$505:$C$1005,$D$505:$D$1005)-D175)/0.0001 -> -0.7793395763 | G175: =(LOOKUP(Sheet2!C175+0.0001,Sheet2!$C$505:$C$1005,$E$505:$E$1005)-E175)/0.0001 -> -0.5518061145 | H175: 0.7080432347 | I175: 0.7080432347
C176: 2.168542914 | D176: -0.9303965429 | E176: 0.9753613067 | F176: =(LOOKUP(Sheet2!C176+0.0001,Sheet2!$C$505:$C$1005,$D$505:$D$1005)-D176)/0.0001 -> -0.7329231109 | G176: =(LOOKUP(Sheet2!C176+0.0001,Sheet2!$C$505:$C$1005,$E$505:$E$1005)-E176)/0.0001 -> -0.6622794373 | H176: 0.9036138 | I176: 0.9036138
C177: 2.181077844 | D177: -0.9392926921 | E177: 0.9663775791 | F177: =(LOOKUP(Sheet2!C177+0.0001,Sheet2!$C$505:$C$1005,$D$505:$D$1005)-D177)/0.0001 -> -0.686046029 | G177: =(LOOKUP(Sheet2!C177+0.0001,Sheet2!$C$505:$C$1005,$E$505:$E$1005)-E177)/0.0001 -> -0.7718163278 | H177: 1.125021201 | I177: 1.125021201
C178: 2.193612774 | D178: -0.9475985287 | E178: 0.9560274385 | F178: =(LOOKUP(Sheet2!C178+0.0001,Sheet2!$C$505:$C$1005,$D$505:$D$1005)-D178)/0.0001 -> -0.6387377911 | G178: =(LOOKUP(Sheet2!C178+0.0001,Sheet2!$C$505:$C$1005,$E$505:$E$1005)-E178)/0.0001 -> -0.8802619057 | H178: 1.378127172 | I178: 1.378127172
C179: 2.206147705 | D179: -0.9553088328 | E179: 0.9443255194 | F179: =(LOOKUP(Sheet2!C179+0.0001,Sheet2!$C$505:$C$1005,$D$505:$D$1005)-D179)/0.0001 -> -0.591028129 | G179: =(LOOKUP(Sheet2!C179+0.0001,Sheet2!$C$505:$C$1005,$E$505:$E$1005)-E179)/0.0001 -> -0.9874628341 | H179: 1.670754378 | I179: 1.670754378
C180: 2.218682635 | D180: -0.9624187587 | E180: 0.9312883678 | F180: =(LOOKUP(Sheet2!C180+0.0001,Sheet2!$C$505:$C$1005,$D$505:$D$1005)-D180)/0.0001 -> -0.5429470264 | G180: =(LOOKUP(Sheet2!C180+0.0001,Sheet2!$C$505:$C$1005,$E$505:$E$1005)-E180)/0.0001 -> -1.093267536 | H180: 2.013580484 | I180: 2.013580484
C181: 2.231217565 | D181: -0.9689238382 | E181: 0.9169344177 | F181: =(LOOKUP(Sheet2!C181+0.0001,Sheet2!$C$505:$C$1005,$D$505:$D$1005)-D181)/0.0001 -> -0.4945247005 | G181: =(LOOKUP(Sheet2!C181+0.0001,Sheet2!$C$505:$C$1005,$E$505:$E$1005)-E181)/0.0001 -> -1.197526408 | H181: 2.421570463 | I181: 2.421570463
C182: 2.243752495 | D182: -0.974819983 | E182: 0.9012839648 | F182: =(LOOKUP(Sheet2!C182+0.0001,Sheet2!$C$505:$C$1005,$D$505:$D$1005)-D182)/0.0001 -> -0.4457915833 | G182: =(LOOKUP(Sheet2!C182+0.0001,Sheet2!$C$505:$C$1005,$E$505:$E$1005)-E182)/0.0001 -> -1.300092033 | H182: 2.916367384 | I182: 2.916367384
C183: 2.256287425 | D183: -0.9801034876 | E183: 0.8843591381 | F183: =(LOOKUP(Sheet2!C183+0.0001,Sheet2!$C$505:$C$1005,$D$505:$D$1005)-D183)/0.0001 -> -0.3967783016 | G183: =(LOOKUP(Sheet2!C183+0.0001,Sheet2!$C$505:$C$1005,$E$505:$E$1005)-E183)/0.0001 -> -1.400819389 | H183: 3.530483858 | I183: 3.530483858
C184: 2.268822355 | D184: -0.9847710314 | E184: 0.8661838687 | F184: =(LOOKUP(Sheet2!C184+0.0001,Sheet2!$C$505:$C$1005,$D$505:$D$1005)-D184)/0.0001 -> -0.3475156587 | G184: =(LOOKUP(Sheet2!C184+0.0001,Sheet2!$C$505:$C$1005,$E$505:$E$1005)-E184)/0.0001 -> -1.499566051 | H184: 4.315103545 | I184: 4.315103545
C185: 2.281357285 | D185: -0.9888196812 | E185: 0.8467838555 | F185: =(LOOKUP(Sheet2!C185+0.0001,Sheet2!$C$505:$C$1005,$D$505:$D$1005)-D185)/0.0001 -> -0.2980346143 | G185: =(LOOKUP(Sheet2!C185+0.0001,Sheet2!$C$505:$C$1005,$E$505:$E$1005)-E185)/0.0001 -> -1.596192396 | H185: 5.355728225 | I185: 5.355728225
C186: 2.293892216 | D186: -0.9922468924 | E186: 0.8261865291 | F186: =(LOOKUP(Sheet2!C186+0.0001,Sheet2!$C$505:$C$1005,$D$505:$D$1005)-D186)/0.0001 -> -0.2483662656 | G186: =(LOOKUP(Sheet2!C186+0.0001,Sheet2!$C$505:$C$1005,$E$505:$E$1005)-E186)/0.0001 -> -1.690561799 | H186: 6.806728742 | I186: 6.806728742
C187: 2.306427146 | D187: -0.9950505112 | E187: 0.8044210133 | F187: =(LOOKUP(Sheet2!C187+0.0001,Sheet2!$C$505:$C$1005,$D$505:$D$1005)-D187)/0.0001 -> -0.1985418275 | G187: =(LOOKUP(Sheet2!C187+0.0001,Sheet2!$C$505:$C$1005,$E$505:$E$1005)-E187)/0.0001 -> -1.782540826 | H187: 8.978162681 | I187: 8.978162681
C188: 2.318962076 | D188: -0.9972287755 | E188: 0.7815180835 | F188: =(LOOKUP(Sheet2!C188+0.0001,Sheet2!$C$505:$C$1005,$D$505:$D$1005)-D188)/0.0001 -> -0.1485926127 | G188: =(LOOKUP(Sheet2!C188+0.0001,Sheet2!$C$505:$C$1005,$E$505:$E$1005)-E188)/0.0001 -> -1.871999423 | H188: 12.59819979 | I188: 12.59819979
C189: 2.331497006 | D189: -0.9987803166 | E189: 0.7575101234 | F189: =(LOOKUP(Sheet2!C189+0.0001,Sheet2!$C$505:$C$1005,$D$505:$D$1005)-D189)/0.0001 -> -0.09855001268 | G189: =(LOOKUP(Sheet2!C189+0.0001,Sheet2!$C$505:$C$1005,$E$505:$E$1005)-E189)/0.0001 -> -1.958811099 | H189: 19.87631504 | I189: 19.87631504
C190: 2.344031936 | D190: -0.9997041591 | E190: 0.7324310791 | F190: =(LOOKUP(Sheet2!C190+0.0001,Sheet2!$C$505:$C$1005,$D$505:$D$1005)-D190)/0.0001 -> -0.04844547744 | G190: =(LOOKUP(Sheet2!C190+0.0001,Sheet2!$C$505:$C$1005,$E$505:$E$1005)-E190)/0.0001 -> -2.042853108 | H190: 42.16808701 | I190: 42.16808701
C191: 2.356566866 | D191: -0.9999997227 | E191: 0.7063164112 | F191: =(LOOKUP(Sheet2!C191+0.0001,Sheet2!$C$505:$C$1005,$D$505:$D$1005)-D191)/0.0001 -> 0.001689504097 | G191: =(LOOKUP(Sheet2!C191+0.0001,Sheet2!$C$505:$C$1005,$E$505:$E$1005)-E191)/0.0001 -> -2.124006617 | H191: -1257.177548 | I191: -100
C192: 2.369101796 | D192: -0.9996668214 | E192: 0.6792030446 | F192: =(LOOKUP(Sheet2!C192+0.0001,Sheet2!$C$505:$C$1005,$D$505:$D$1005)-D192)/0.0001 -> 0.05182342383 | G192: =(LOOKUP(Sheet2!C192+0.0001,Sheet2!$C$505:$C$1005,$E$505:$E$1005)-E192)/0.0001 -> -2.202156879 | H192: -42.49346562 | I192: -42.49346562
C193: 2.381636727 | D193: -0.9987056645 | E193: 0.6511293165 | F193: =(LOOKUP(Sheet2!C193+0.0001,Sheet2!$C$505:$C$1005,$D$505:$D$1005)-D193)/0.0001 -> 0.1019247744 | G193: =(LOOKUP(Sheet2!C193+0.0001,Sheet2!$C$505:$C$1005,$E$505:$E$1005)-E193)/0.0001 -> -2.277193393 | H193: -22.34190272 | I193: -22.34190272
C194: 2.394171657 | D194: -0.9971168561 | E194: 0.6221349217 | F194: =(LOOKUP(Sheet2!C194+0.0001,Sheet2!$C$505:$C$1005,$D$505:$D$1005)-D194)/0.0001 -> 0.1519620687 | G194: =(LOOKUP(Sheet2!C194+0.0001,Sheet2!$C$505:$C$1005,$E$505:$E$1005)-E194)/0.0001 -> -2.349010062 | H194: -15.45787104 | I194: -15.45787104
C195: 2.406706587 | D195: =SIN(2*t) -> -0.9949013947 | E195: =COS(3*t) -> 0.5922608569 | F195: =(LOOKUP(Sheet2!C195+0.0001,Sheet2!$C$505:$C$1005,$D$505:$D$1005)-D195)/0.0001 -> 0.2019038603 | G195: =(LOOKUP(Sheet2!C195+0.0001,Sheet2!$C$505:$C$1005,$E$505:$E$1005)-E195)/0.0001 -> -2.417505339 | H195: -11.97354689 | I195: -11.97354689
C196: 2.419241517 | D196: -0.9920606726 | E196: 0.5615493628 | F196: =(LOOKUP(Sheet2!C196+0.0001,Sheet2!$C$505:$C$1005,$D$505:$D$1005)-D196)/0.0001 -> 0.2517187623 | G196: =(LOOKUP(Sheet2!C196+0.0001,Sheet2!$C$505:$C$1005,$E$505:$E$1005)-E196)/0.0001 -> -2.482582376 | H196: -9.862524164 | I196: =IF(H196>100,100,IF(H196<-100,-100,H196)) -> -9.862524164
C197: =C196+B$12 -> 2.431776447 | D197: -0.9885964751 | E197: 0.5300438639 | F197: =(LOOKUP(Sheet2!C197+0.0001,Sheet2!$C$505:$C$1005,$D$505:$D$1005)-D197)/0.0001 -> 0.3013754679 | G197: =(LOOKUP(Sheet2!C197+0.0001,Sheet2!$C$505:$C$1005,$E$505:$E$1005)-E197)/0.0001 -> -2.544149156 | H197: =G197/F197 -> -8.441792472 | I197: -8.441792472
C198: 2.444311377 | D198: -0.9845109794 | E198: 0.4977889076 | F198: =(LOOKUP(Sheet2!C198+0.0001,Sheet2!$C$505:$C$1005,$D$505:$D$1005)-D198)/0.0001 -> 0.3508427696 | G198: =(LOOKUP(Sheet2!C198+0.0001,Sheet2!$C$505:$C$1005,$E$505:$E$1005)-E198)/0.0001 -> -2.602118628 | H198: -7.416765723 | I198: -7.416765723
C199: 2.456846307 | D199: -0.979806753 | E199: 0.4648301009 | F199: =(LOOKUP(Sheet2!C199+0.0001,Sheet2!$C$505:$C$1005,$D$505:$D$1005)-D199)/0.0001 -> 0.4000895789 | G199: =(LOOKUP(Sheet2!C199+0.0001,Sheet2!$C$505:$C$1005,$E$505:$E$1005)-E199)/0.0001 -> -2.656408824 | H199: -6.639535155 | I199: -6.639535155
C200: 2.469381238 | D200: -0.9744867523 | E200: 0.4312140459 | F200: =(LOOKUP(Sheet2!C200+0.0001,Sheet2!$C$505:$C$1005,$D$505:$D$1005)-D200)/0.0001 -> 0.4490849459 | G200: =(LOOKUP(Sheet2!C200+0.0001,Sheet2!$C$505:$C$1005,$E$505:$E$1005)-E200)/0.0001 -> -2.706942982 | H200: -6.027685868 | I200: -6.027685868
... 806 more rows

Sheet Defining Function
A1: Defining a Function in Excel
A3: Computers have very specific rules you must follow when defining a function. If you don't, the program will either not work at all or will work incorrectly.
A5: 1. The Variable used should be the one named in the instruction, usually x, though sometimes y, t, Q (for an angle theta),
A6: or even x and y (for a function of two variables).
A8: 2. Order of Operations: There five arithmetic operations, addition (+), subtraction (-), multiplication (*), division (/), and exponentiation or power (^). When computers see any of these operation symbols, they perform the indicated steps in a very particular order. First, the power is done. Second, products and quotients of adjacent terms is done. Third, and last, sums and differences of adjacent terms are done. So, in 10*x^3 + 5*x – 7, say with x = 2, the first pass only calculates 2^3 and ignores the multiplications and the sums and differences to calculate 2^3 = 8. The second pass looks at 10*8 + 5*2 – 7 and only does the multiplications, so it produces 80 + 10 - 7. The third pass looks at the +’s and –‘s to produce 80 + 10 – 7 = 83.
A10: 3. Parentheses If you need an operation involving more than two adjacent terms, as in Ö4^3 + 6^2, the computer would take the square root of 4 to produce 2^3 + 6^2; it would then cube the 2 and square the 6 to produce 8 + 36; and finally it would add the 8 and the 36 to get 44. If you actually wanted the square root of the entire expression, you would need to use parentheses, as in Ö(4^3 + 6^2) to tell the computer to do all the operations inside the parentheses before taking the square root. Therefore, it would calculate (4^3 + 6^2) = 64 + 36 = 100 and then take the square root of Ö100 = 10.
A12: 4. Built-In Functions Computer programs have built-in functions for most common algebraic functions. In Excel, the square root function is denoted by SQRT(…), so SQRT(100) = 10. Alternatively, you could enter it as 100^.5 or 100^(1/2); notice that parentheses are needed to have the ½ done first. The common trig functions are SIN (…), COS (…), and TAN (…), where the arguments are automatically interpreted as being in radians, not degrees. The logarithm to the base 10 is represented by LOG (…) and the logarithm with the base e, known as the natural logarithm, is LN (…). The corresponding exponential function with base e is EXP (x). If x is the variable, then each of these would be SQRT (x), SIN (x), COS (x), TAN (x), LOG (x) (for log with base 10 ), LN (x) (for log with base e ), and EXP (x).

Sheet Sheet3
